Workbook

Sheet All
B1: Kinross Road Runners 2018 Club Championship
E2: Alloa Half | F2: Alloa Half | G2: Tay Ten | H2: Tay Ten | I2: Kinross PTA 10k | J2: Kinross PTA 10k | K2: Dunblane 12 | L2: Dunblane 12 | M2: Rattray Half | N2: Rattray Half | O2: Brig Bash 5m | P2: Brig Bash 5m | Q2: Kn'khill 3.9M | R2: Kn'hill 3.9M | S2: Ceres 8M | T2: Ceres 8M | U2: Highland Half | V2: Highland Half | W2: P'lochry 10km | X2: P'lochry 10km | Y2: Linlithgow 10k | Z2: Linlithgow 10k | AA2: Templeton 10 | AB2: Templeton 10 | AC2: No. of Races | AD2: Average Time | AE2: No. Races for ranking | AF2: Best 5 Average Time
E3: Actual | F3: SSS 1.4 | G3: Actual | H3: SSS 0.7 | I3: Actual | J3: SSS 1.3 | K3: Actual | L3: SSS 1.9 | M3: 10k Equiv | N3: SSS 4.8 | O3: Actual | P3: SSS 1.6 | Q3: Actual | R3: SSS 0.1 | S3: Actual | T3: SSS 2.4 | U3: Actual | V3: SSS 0.4 | W3: Actual | X3: SSS 0.2 | Y3: Actual | Z3: SSS 1.3 | AA3: Actual | AB3: SSS 2.7
B4: Surname | C4: First | E4: hh:mm:ss | F4: hh:mm:ss | G4: hh:mm:ss | H4: hh:mm:ss | I4: hh:mm:ss | J4: hh:mm:ss | K4: hh:mm:ss | L4: hh:mm:ss | M4: hh:mm:ss | N4: hh:mm:ss | O4: hh:mm:ss | P4: hh:mm:ss | Q4: hh:mm:ss | R4: hh:mm:ss | S4: hh:mm:ss | T4: hh:mm:ss | U4: hh:mm:ss | V4: hh:mm:ss | W4: hh:mm:ss | X4: hh:mm:ss | Y4: hh:mm:ss | Z4: hh:mm:ss | AA4: hh:mm:ss | AB4: hh:mm:ss | AD4: hh:mm:ss | AF4: hh:mm:ss
B5: Test | C5: Test | E5: 1.157407407e-05 | F5: =98.2%*(E5*86400)*POWER((6.2138818/13.1094),1.07)/86400 -> 5.113079322e-06 | G5: 1.157407407e-05 | H5: =99.3%*(G5*86400)*POWER((6.2138818/10),1.07)/86400 -> 6.90770692e-06 | I5: 1.157407407e-05 | J5: =98.7%*(I5) -> 1.142361111e-05 | K5: 1.157407407e-05 | L5: =98.1%*(K5*86400)*POWER((6.2138818/7.45645),1.07)/86400 -> 9.342095536e-06 | M5: 1.157407407e-05 | N5: =95.2%*(M5*86400)*POWER((6.2138818/13.1094),1.07)/86400 -> 4.956875269e-06 | O5: 1.157407407e-05 | P5: =98.4%*(O5*86400)*POWER((6.2138818/5),1.07)/86400 -> 1.437082988e-05 | Q5: 1.157407407e-05 | R5: =99.9%*(Q5*86400)*POWER((6.2138818/3.9),1.07)/86400 -> 1.903316503e-05 | S5: 1.157407407e-05 | T5: =97.6%*(S5*86400)*POWER((6.2138818/8),1.07)/86400 -> 8.620415242e-06 | V5: =99.6%*(U5*86400)*POWER((6.2138818/13.1094),1.07)/86400 -> 0 | W5: 1.157407407e-05 | X5: =99.8%*(W5) -> 1.155092593e-05 | Y5: 1.157407407e-05 | Z5: =98.7%*(Y5) -> 1.142361111e-05 | AA5: 1.157407407e-05 | AB5: =97.3%*(AA5*86400)*POWER((6.2138818/10),1.07)/86400 -> 6.768578885e-06 | AC5: =COUNT(F5,H5,J5,L5,N5,P5,R5,T5,V5,X5,Z5,AB5) -> 12 | AD5: =IFERROR(AVERAGE(F5,H5,J5,L5,N5,P5,R5,T5,V5,X5,Z5,AB5),"No race run") -> 9.125907853e-06 | AE5: =IF(COUNT(F5,H5,J5,L5:N5,P5,R5,T5,#REF!,X5)>5,5,COUNT(F5,H5,J5,L5:N5,P5,R5,T5,#REF!,X5)) -> 5 | AF5: =IFERROR(IF(AC5>5,AVERAGE(SMALL((F5,H5,J5,L5,N5,P5,R5,T5,V5,X5,Z5,AB5),{1,2,3,4,5})),AD5),"No race run") -> 4.749248079e-06
B6: Scott | C6: David | D6: M | E6: 0.05627314815 | F6: =98.2%*(E6*86400)*POWER((6.2138818/13.1094),1.07)/86400 -> 0.02485979166 | G6: 0.04189814815 | H6: =99.3%*(G6*86400)*POWER((6.2138818/10),1.07)/86400 -> 0.02500589905 | I6: 0.02541666667 | J6: =98.7%*(I6) -> 0.02508625 | K6: 0.03136574074 | L6: =98.1%*(K6*86400)*POWER((6.2138818/7.45645),1.07)/86400 -> 0.0253170789 | Q6: 0.01525462963 | R6: =99.9%*(Q6*86400)*POWER((6.2138818/3.9),1.07)/86400 -> 0.02508571151 | S6: 0.03365740741 | T6: =97.6%*(S6*86400)*POWER((6.2138818/8),1.07)/86400 -> 0.02506816752 | Y6: 0.02528935185 | Z6: =98.7%*(Y6) -> 0.02496059028 | AC6: 7 | AD6: 0.02505478413 | AE6: =IF(COUNT(F6,H6,J6,L6:N6,P6,R6,T6,#REF!,X6)>5,5,COUNT(F6,H6,J6,L6:N6,P6,R6,T6,#REF!,X6)) -> 5 | AF6: =IFERROR(IF(AC6>5,AVERAGE(SMALL((F6,H6,J6,L6,N6,P6,R6,T6,V6,X6,Z6,AB6),{1,2,3,4,5})),AD6),"No race run") -> 0.02499603201
B7: Strachan | C7: Scott | D7: M | E7: 0.05804398148 | F7: =98.2%*(E7*86400)*POWER((6.2138818/13.1094),1.07)/86400 -> 0.0256420928 | G7: 0.04243055556 | H7: =99.3%*(G7*86400)*POWER((6.2138818/10),1.07)/86400 -> 0.02532365357 | O7: 0.02049768519 | P7: =98.4%*(O7*86400)*POWER((6.2138818/5),1.07)/86400 -> 0.02545073972 | Q7: 0.01530092593 | R7: =99.9%*(Q7*86400)*POWER((6.2138818/3.9),1.07)/86400 -> 0.02516184417 | U7: 0.05635416667 | V7: =99.6%*(U7*86400)*POWER((6.2138818/13.1094),1.07)/86400 -> 0.02525051007 | W7: 0.02503472222 | X7: =99.8%*(W7) -> 0.02498465278 | Y7: 0.02564814815 | Z7: 0.02531472222 | AC7: 7 | AD7: 0.02530403076 | AE7: =IF(COUNT(F7,H7,J7,L7:N7,P7,R7,T7,#REF!,X7)>5,5,COUNT(F7,H7,J7,L7:N7,P7,R7,T7,#REF!,X7)) -> 5 | AF7: =IFERROR(IF(AC7>5,AVERAGE(SMALL((F7,H7,J7,L7,N7,P7,R7,T7,V7,X7,Z7,AB7),{1,2,3,4,5})),AD7),"No race run") -> 0.02520707656
B8: Kemp | C8: Allan | D8: M | E8: 0.06328703704 | F8: =98.2%*(E8*86400)*POWER((6.2138818/13.1094),1.07)/86400 -> 0.02795831773 | G8: 0.04303240741 | H8: =99.3%*(G8*86400)*POWER((6.2138818/10),1.07)/86400 -> 0.02568285433 | Y8: 0.02613425926 | Z8: 0.02579451389 | AC8: 3 | AD8: 0.02647856198 | AE8: =IF(COUNT(F8,H8,J8,L8:N8,P8,R8,T8,#REF!,X8)>5,5,COUNT(F8,H8,J8,L8:N8,P8,R8,T8,#REF!,X8)) -> 2 | AF8: =IFERROR(IF(AC8>5,AVERAGE(SMALL((F8,H8,J8,L8,N8,P8,R8,T8,V8,X8,Z8,AB8),{1,2,3,4,5})),AD8),"No race run") -> 0.02647856198
B9: Beveridge | C9: John | D9: M | O9: 0.02195601852 | P9: =98.4%*(O9*86400)*POWER((6.2138818/5),1.07)/86400 -> 0.02726146429 | U9: 0.05846064815 | V9: =99.6%*(U9*86400)*POWER((6.2138818/13.1094),1.07)/86400 -> 0.02619435743 | Y9: 0.02674768519 | Z9: 0.02639996528 | AC9: 3 | AD9: 0.02661859567 | AE9: =IF(COUNT(F9,H9,J9,L9:N9,P9,R9,T9,#REF!,X9)>5,5,COUNT(F9,H9,J9,L9:N9,P9,R9,T9,#REF!,X9)) -> 1 | AF9: =IFERROR(IF(AC9>5,AVERAGE(SMALL((F9,H9,J9,L9,N9,P9,R9,T9,V9,X9,Z9,AB9),{1,2,3,4,5})),AD9),"No race run") -> 0.02661859567
B10: Newton | C10: Matt | D10: M | E10: 0.06138888889 | F10: =98.2%*(E10*86400)*POWER((6.2138818/13.1094),1.07)/86400 -> 0.02711977272 | I10: 0.02719907407 | J10: =98.7%*(I10) -> 0.02684548611 | Y10: 0.02642361111 | Z10: 0.02608010417 | AC10: 3 | AD10: 0.02668178767 | AE10: =IF(COUNT(F10,H10,J10,L10:N10,P10,R10,T10,#REF!,X10)>5,5,COUNT(F10,H10,J10,L10:N10,P10,R10,T10,#REF!,X10)) -> 2 | AF10: =IFERROR(IF(AC10>5,AVERAGE(SMALL((F10,H10,J10,L10,N10,P10,R10,T10,V10,X10,Z10,AB10),{1,2,3,4,5})),AD10),"No race run") -> 0.02668178767
B11: Hill | C11: Martin | D11: M | E11: 0.06302083333 | F11: =98.2%*(E11*86400)*POWER((6.2138818/13.1094),1.07)/86400 -> 0.02784071691 | G11: 0.04667824074 | H11: =99.3%*(G11*86400)*POWER((6.2138818/10),1.07)/86400 -> 0.02785878201 | I11: 0.02825231481 | J11: =98.7%*(I11) -> 0.02788503472 | K11: 0.0346875 | L11: =98.1%*(K11*86400)*POWER((6.2138818/7.45645),1.07)/86400 -> 0.02799826032 | Q11: 0.01716435185 | R11: =99.9%*(Q11*86400)*POWER((6.2138818/3.9),1.07)/86400 -> 0.02822618374 | Y11: 0.02840277778 | Z11: 0.02803354167 | AC11: 6 | AD11: 0.02797375323 | AE11: =IF(COUNT(F11,H11,J11,L11:N11,P11,R11,T11,#REF!,X11)>5,5,COUNT(F11,H11,J11,L11:N11,P11,R11,T11,#REF!,X11)) -> 5 | AF11: =IFERROR(IF(AC11>5,AVERAGE(SMALL((F11,H11,J11,L11,N11,P11,R11,T11,V11,X11,Z11,AB11),{1,2,3,4,5})),AD11),"No race run") -> 0.02792326713
B12: Freck | C12: Sandy | D12: M | G12: 0.04717592593 | H12: =99.3%*(G12*86400)*POWER((6.2138818/10),1.07)/86400 -> 0.02815581341 | AC12: 1 | AD12: 0.02815581341 | AE12: =IF(COUNT(F12,H12,J12,L12:N12,P12,R12,T12,#REF!,X12)>5,5,COUNT(F12,H12,J12,L12:N12,P12,R12,T12,#REF!,X12)) -> 1 | AF12: =IFERROR(IF(AC12>5,AVERAGE(SMALL((F12,H12,J12,L12,N12,P12,R12,T12,V12,X12,Z12,AB12),{1,2,3,4,5})),AD12),"No race run") -> 0.02815581341
B13: Gordon | C13: Jillian | D13: F | G13: 0.04628472222 | H13: =99.3%*(G13*86400)*POWER((6.2138818/10),1.07)/86400 -> 0.02762391997 | Y13: 0.02915509259 | Z13: =98.7%*(Y13) -> 0.02877607639 | AC13: 2 | AD13: 0.02819999818 | AE13: =IF(COUNT(F13,H13,J13,L13:N13,P13,R13,T13,#REF!,X13)>5,5,COUNT(F13,H13,J13,L13:N13,P13,R13,T13,#REF!,X13)) -> 1 | AF13: =IFERROR(IF(AC13>5,AVERAGE(SMALL((F13,H13,J13,L13,N13,P13,R13,T13,V13,X13,Z13,AB13),{1,2,3,4,5})),AD13),"No race run") -> 0.02819999818
B14: Nisbet | C14: Fiona | D14: F | G14: 0.04802083333 | H14: =99.3%*(G14*86400)*POWER((6.2138818/10),1.07)/86400 -> 0.02866007601 | K14: 0.03635416667 | L14: =98.1%*(K14*86400)*POWER((6.2138818/7.45645),1.07)/86400 -> 0.02934352208 | O14: 0.02341435185 | P14: =98.4%*(O14*86400)*POWER((6.2138818/5),1.07)/86400 -> 0.02907218885 | Q14: 0.01787037037 | R14: =99.9%*(Q14*86400)*POWER((6.2138818/3.9),1.07)/86400 -> 0.02938720681 | Y14: 0.03 | Z14: =98.7%*(Y14) -> 0.02961 | AC14: 5 | AD14: 0.02921459875 | AE14: =IF(COUNT(F14,H14,J14,L14:N14,P14,R14,T14,#REF!,X14)>5,5,COUNT(F14,H14,J14,L14:N14,P14,R14,T14,#REF!,X14)) -> 4 | AF14: =IFERROR(IF(AC14>5,AVERAGE(SMALL((F14,H14,J14,L14,N14,P14,R14,T14,V14,X14,Z14,AB14),{1,2,3,4,5})),AD14),"No race run") -> 0.02921459875
B15: Allcoat | C15: Paul | D15: M | E15: 0.06719907407 | F15: =98.2%*(E15*86400)*POWER((6.2138818/13.1094),1.07)/86400 -> 0.02968653854 | O15: 0.02334490741 | P15: =98.4%*(O15*86400)*POWER((6.2138818/5),1.07)/86400 -> 0.02898596387 | Q15: 0.01765046296 | R15: =99.9%*(Q15*86400)*POWER((6.2138818/3.9),1.07)/86400 -> 0.02902557667 | Y15: 0.03030092593 | Z15: =98.7%*(Y15) -> 0.02990701389 | AA15: 0.05068287037 | AB15: =97.3%*(AA15*86400)*POWER((6.2138818/10),1.07)/86400 -> 0.02963960694 | AC15: 5 | AD15: 0.02944893998 | AE15: =IF(COUNT(F15,H15,J15,L15:N15,P15,R15,T15,#REF!,X15)>5,5,COUNT(F15,H15,J15,L15:N15,P15,R15,T15,#REF!,X15)) -> 3 | AF15: =IFERROR(IF(AC15>5,AVERAGE(SMALL((F15,H15,J15,L15,N15,P15,R15,T15,V15,X15,Z15,AB15),{1,2,3,4,5})),AD15),"No race run") -> 0.02944893998
B16: Freck | C16: Sandy | D16: M | E16: 0.06934027778 | F16: =98.2%*(E16*86400)*POWER((6.2138818/13.1094),1.07)/86400 -> 0.03063245822 | I16: 0.02880787037 | J16: =98.7%*(I16) -> 0.02843336806 | AC16: 2 | AD16: 0.02953291314 | AE16: =IF(COUNT(F16,H16,J16,L16:N16,P16,R16,T16,#REF!,X16)>5,5,COUNT(F16,H16,J16,L16:N16,P16,R16,T16,#REF!,X16)) -> 2 | AF16: =IFERROR(IF(AC16>5,AVERAGE(SMALL((F16,H16,J16,L16,N16,P16,R16,T16,V16,X16,Z16,AB16),{1,2,3,4,5})),AD16),"No race run") -> 0.02953291314
B17: Jones | C17: Tim | D17: M | I17: 0.03021990741 | J17: =98.7%*(I17) -> 0.02982704861 | K17: 0.03684027778 | L17: =98.1%*(K17*86400)*POWER((6.2138818/7.45645),1.07)/86400 -> 0.02973589009 | S17: 0.04018518519 | T17: =97.6%*(S17*86400)*POWER((6.2138818/8),1.07)/86400 -> 0.02993008172 | U17: 0.06524305556 | V17: =99.6%*(U17*86400)*POWER((6.2138818/13.1094),1.07)/86400 -> 0.02923333852 | W17: 0.0290162037 | X17: =99.8%*(W17) -> 0.0289581713 | AC17: 5 | AD17: 0.02953690605 | AE17: =IF(COUNT(F17,H17,J17,L17:N17,P17,R17,T17,#REF!,X17)>5,5,COUNT(F17,H17,J17,L17:N17,P17,R17,T17,#REF!,X17)) -> 4 | AF17: =IFERROR(IF(AC17>5,AVERAGE(SMALL((F17,H17,J17,L17,N17,P17,R17,T17,V17,X17,Z17,AB17),{1,2,3,4,5})),AD17),"No race run") -> 0.02953690605
B18: Hutt | C18: Sarah | D18: F | M18: 0.07128472222 | N18: =95.2%*(M18*86400)*POWER((6.2138818/13.1094),1.07)/86400 -> 0.03052939478 | O18: 0.02365740741 | P18: =98.4%*(O18*86400)*POWER((6.2138818/5),1.07)/86400 -> 0.02937397628 | Q18: 0.0178587963 | R18: =99.9%*(Q18*86400)*POWER((6.2138818/3.9),1.07)/86400 -> 0.02936817364 | U18: 0.06646990741 | V18: =99.6%*(U18*86400)*POWER((6.2138818/13.1094),1.07)/86400 -> 0.02978305182 | Y18: 0.03013888889 | Z18: =98.7%*(Y18) -> 0.02974708333 | AA18: 0.05096064815 | AB18: =97.3%*(AA18*86400)*POWER((6.2138818/10),1.07)/86400 -> 0.02980205283 | AC18: 6 | AD18: 0.02976728878 | AE18: =IF(COUNT(F18,H18,J18,L18:N18,P18,R18,T18,#REF!,X18)>5,5,COUNT(F18,H18,J18,L18:N18,P18,R18,T18,#REF!,X18)) -> 4 | AF18: =IFERROR(IF(AC18>5,AVERAGE(SMALL((F18,H18,J18,L18,N18,P18,R18,T18,V18,X18,Z18,AB18),{1,2,3,4,5})),AD18),"No race run") -> 0.02961486758
B19: Sinclair | C19: Ally | D19: M | E19: 0.06934027778 | F19: =98.2%*(E19*86400)*POWER((6.2138818/13.1094),1.07)/86400 -> 0.03063245822 | I19: 0.0318287037 | J19: =98.7%*(I19) -> 0.03141493056 | O19: 0.02375 | P19: =98.4%*(O19*86400)*POWER((6.2138818/5),1.07)/86400 -> 0.02948894292 | Q19: 0.01746527778 | R19: =99.9%*(Q19*86400)*POWER((6.2138818/3.9),1.07)/86400 -> 0.02872104603 | AC19: 4 | AD19: 0.03006434443 | AE19: =IF(COUNT(F19,H19,J19,L19:N19,P19,R19,T19,#REF!,X19)>5,5,COUNT(F19,H19,J19,L19:N19,P19,R19,T19,#REF!,X19)) -> 4 | AF19: =IFERROR(IF(AC19>5,AVERAGE(SMALL((F19,H19,J19,L19,N19,P19,R19,T19,V19,X19,Z19,AB19),{1,2,3,4,5})),AD19),"No race run") -> 0.03006434443
B20: Blair | C20: Steven | D20: M | I20: 0.03203703704 | J20: =98.7%*(I20) -> 0.03162055556 | O20: 0.0240162037 | P20: =98.4%*(O20*86400)*POWER((6.2138818/5),1.07)/86400 -> 0.029819472 | Q20: 0.01759259259 | R20: =99.9%*(Q20*86400)*POWER((6.2138818/3.9),1.07)/86400 -> 0.02893041085 | Y20: 0.03037037037 | Z20: =98.7%*(Y20) -> 0.02997555556 | AC20: 4 | AD20: 0.03008649849 | AE20: =IF(COUNT(F20,H20,J20,L20:N20,P20,R20,T20,#REF!,X20)>5,5,COUNT(F20,H20,J20,L20:N20,P20,R20,T20,#REF!,X20)) -> 3 | AF20: =IFERROR(IF(AC20>5,AVERAGE(SMALL((F20,H20,J20,L20,N20,P20,R20,T20,V20,X20,Z20,AB20),{1,2,3,4,5})),AD20),"No race run") -> 0.03008649849
B21: Creese | C21: Jonathan | D21: M | I21: 0.03097222222 | J21: =98.7%*(I21) -> 0.03056958333 | AC21: 1 | AD21: 0.03056958333 | AE21: =IF(COUNT(F21,H21,J21,L21:N21,P21,R21,T21,#REF!,X21)>5,5,COUNT(F21,H21,J21,L21:N21,P21,R21,T21,#REF!,X21)) -> 1 | AF21: =IFERROR(IF(AC21>5,AVERAGE(SMALL((F21,H21,J21,L21,N21,P21,R21,T21,V21,X21,Z21,AB21),{1,2,3,4,5})),AD21),"No race run") -> 0.03056958333
B22: Dobson | C22: Judith | D22: F | G22: 0.04981481481 | H22: =99.3%*(G22*86400)*POWER((6.2138818/10),1.07)/86400 -> 0.02973077058 | K22: 0.03912037037 | L22: =98.1%*(K22*86400)*POWER((6.2138818/7.45645),1.07)/86400 -> 0.03157628291 | M22: 0.07318287037 | N22: =95.2%*(M22*86400)*POWER((6.2138818/13.1094),1.07)/86400 -> 0.03134232233 | O22: 0.02583333333 | P22: =98.4%*(O22*86400)*POWER((6.2138818/5),1.07)/86400 -> 0.0320756923 | Q22: 0.01900462963 | R22: =99.9%*(Q22*86400)*POWER((6.2138818/3.9),1.07)/86400 -> 0.03125245698 | W22: 0.03050925926 | X22: =99.8%*(W22) -> 0.03044824074 | Y22: 0.03105324074 | Z22: =98.7%*(Y22) -> 0.03064954861 | AA22: 0.05262731481 | AB22: =97.3%*(AA22*86400)*POWER((6.2138818/10),1.07)/86400 -> 0.03077672819 | AC22: 8 | AD22: 0.03098150533 | AE22: =IF(COUNT(F22,H22,J22,L22:N22,P22,R22,T22,#REF!,X22)>5,5,COUNT(F22,H22,J22,L22:N22,P22,R22,T22,#REF!,X22)) -> 5 | AF22: =IFERROR(IF(AC22>5,AVERAGE(SMALL((F22,H22,J22,L22,N22,P22,R22,T22,V22,X22,Z22,AB22),{1,2,3,4,5})),AD22),"No race run") -> 0.03057154902
B23: Boyle | C23: John | D23: M | AA23: 0.05288194444 | AB23: =97.3%*(AA23*86400)*POWER((6.2138818/10),1.07)/86400 -> 0.03092563693 | AC23: 1 | AD23: 0.03092563693 | AE23: =IF(COUNT(F23,H23,J23,L23:N23,P23,R23,T23,#REF!,X23)>5,5,COUNT(F23,H23,J23,L23:N23,P23,R23,T23,#REF!,X23)) -> 0 | AF23: =IFERROR(IF(AC23>5,AVERAGE(SMALL((F23,H23,J23,L23,N23,P23,R23,T23,V23,X23,Z23,AB23),{1,2,3,4,5})),AD23),"No race run") -> 0.03092563693
B24: Reilly | C24: Jim | D24: M | E24: 0.07825231481 | F24: =98.2%*(E24*86400)*POWER((6.2138818/13.1094),1.07)/86400 -> 0.0345695293 | G24: 0.055 | H24: =99.3%*(G24*86400)*POWER((6.2138818/10),1.07)/86400 -> 0.03282542328 | I24: 0.03209490741 | J24: =98.7%*(I24) -> 0.03167767361 | K24: 0.03986111111 | L24: =98.1%*(K24*86400)*POWER((6.2138818/7.45645),1.07)/86400 -> 0.03217417703 | O24: 0.02546296296 | P24: =98.4%*(O24*86400)*POWER((6.2138818/5),1.07)/86400 -> 0.03161582574 | W24: 0.03165509259 | X24: =99.8%*(W24) -> 0.03159178241 | Y24: 0.0312037037 | Z24: =98.7%*(Y24) -> 0.03079805556 | AC24: 7 | AD24: 0.03217892385 | AE24: =IF(COUNT(F24,H24,J24,L24:N24,P24,R24,T24,#REF!,X24)>5,5,COUNT(F24,H24,J24,L24:N24,P24,R24,T24,#REF!,X24)) -> 5 | AF24: =IFERROR(IF(AC24>5,AVERAGE(SMALL((F24,H24,J24,L24,N24,P24,R24,T24,V24,X24,Z24,AB24),{1,2,3,4,5})),AD24),"No race run") -> 0.03157150287
B25: Hookham | C25: Peter | D25: M | G25: 0.05310185185 | H25: =99.3%*(G25*86400)*POWER((6.2138818/10),1.07)/86400 -> 0.03169255935 | AC25: 1 | AD25: 0.03169255935 | AE25: =IF(COUNT(F25,H25,J25,L25:N25,P25,R25,T25,#REF!,X25)>5,5,COUNT(F25,H25,J25,L25:N25,P25,R25,T25,#REF!,X25)) -> 1 | AF25: =IFERROR(IF(AC25>5,AVERAGE(SMALL((F25,H25,J25,L25,N25,P25,R25,T25,V25,X25,Z25,AB25),{1,2,3,4,5})),AD25),"No race run") -> 0.03169255935
B26: Pool | C26: Richard | D26: M | E26: 0.07549768519 | F26: =98.2%*(E26*86400)*POWER((6.2138818/13.1094),1.07)/86400 -> 0.03335261642 | G26: 0.05408564815 | H26: =99.3%*(G26*86400)*POWER((6.2138818/10),1.07)/86400 -> 0.03227971444 | I26: 0.03152777778 | J26: =98.7%*(I26) -> 0.03111791667 | Q26: 0.01934027778 | R26: =99.9%*(Q26*86400)*POWER((6.2138818/3.9),1.07)/86400 -> 0.03180441877 | AC26: 4 | AD26: 0.03213866657 | AE26: =IF(COUNT(F26,H26,J26,L26:N26,P26,R26,T26,#REF!,X26)>5,5,COUNT(F26,H26,J26,L26:N26,P26,R26,T26,#REF!,X26)) -> 4 | AF26: =IFERROR(IF(AC26>5,AVERAGE(SMALL((F26,H26,J26,L26,N26,P26,R26,T26,V26,X26,Z26,AB26),{1,2,3,4,5})),AD26),"No race run") -> 0.03213866657
B27: Muncey | C27: Laura | D27: F | E27: 0.07476851852 | F27: =98.2%*(E27*86400)*POWER((6.2138818/13.1094),1.07)/86400 -> 0.03303049242 | G27: 0.05445601852 | H27: =99.3%*(G27*86400)*POWER((6.2138818/10),1.07)/86400 -> 0.03250076106 | K27: 0.0415162037 | L27: =98.1%*(K27*86400)*POWER((6.2138818/7.45645),1.07)/86400 -> 0.03351009669 | O27: 0.02565972222 | P27: =98.4%*(O27*86400)*POWER((6.2138818/5),1.07)/86400 -> 0.03186012985 | U27: 0.07885416667 | V27: =99.6%*(U27*86400)*POWER((6.2138818/13.1094),1.07)/86400 -> 0.03533204459 | Y27: 0.03502314815 | Z27: =98.7%*(Y27) -> 0.03456784722 | AC27: 6 | AD27: 0.0334668953 | AE27: =IF(COUNT(F27,H27,J27,L27:N27,P27,R27,T27,#REF!,X27)>5,5,COUNT(F27,H27,J27,L27:N27,P27,R27,T27,#REF!,X27)) -> 4 | AF27: =IFERROR(IF(AC27>5,AVERAGE(SMALL((F27,H27,J27,L27,N27,P27,R27,T27,V27,X27,Z27,AB27),{1,2,3,4,5})),AD27),"No race run") -> 0.03309386545
B28: Woodrow | C28: Andrew | D28: M | I28: 0.03399305556 | J28: =98.7%*(I28) -> 0.03355114583 | AC28: 1 | AD28: 0.03355114583 | AE28: =IF(COUNT(F28,H28,J28,L28:N28,P28,R28,T28,#REF!,X28)>5,5,COUNT(F28,H28,J28,L28:N28,P28,R28,T28,#REF!,X28)) -> 1 | AF28: =IFERROR(IF(AC28>5,AVERAGE(SMALL((F28,H28,J28,L28,N28,P28,R28,T28,V28,X28,Z28,AB28),{1,2,3,4,5})),AD28),"No race run") -> 0.03355114583
B29: Nisbet | C29: Stewart | D29: M | O29: 0.02782407407 | P29: =98.4%*(O29*86400)*POWER((6.2138818/5),1.07)/86400 -> 0.03454747504 | Y29: 0.03378472222 | Z29: =98.7%*(Y29) -> 0.03334552083 | AC29: 2 | AD29: 0.03394649793 | AE29: =IF(COUNT(F29,H29,J29,L29:N29,P29,R29,T29,#REF!,X29)>5,5,COUNT(F29,H29,J29,L29:N29,P29,R29,T29,#REF!,X29)) -> 1 | AF29: =IFERROR(IF(AC29>5,AVERAGE(SMALL((F29,H29,J29,L29,N29,P29,R29,T29,V29,X29,Z29,AB29),{1,2,3,4,5})),AD29),"No race run") -> 0.03394649793
B30: Blair | C30: Gordon | D30: M | Y30: 0.03450231481 | Z30: =98.7%*(Y30) -> 0.03405378472 | AC30: 1 | AD30: 0.03405378472 | AE30: =IF(COUNT(F30,H30,J30,L30:N30,P30,R30,T30,#REF!,X30)>5,5,COUNT(F30,H30,J30,L30:N30,P30,R30,T30,#REF!,X30)) -> 0 | AF30: =IFERROR(IF(AC30>5,AVERAGE(SMALL((F30,H30,J30,L30,N30,P30,R30,T30,V30,X30,Z30,AB30),{1,2,3,4,5})),AD30),"No race run") -> 0.03405378472
B31: McLeod | C31: James | D31: M | Q31: 0.02111111111 | R31: =99.9%*(Q31*86400)*POWER((6.2138818/3.9),1.07)/86400 -> 0.03471649302 | AC31: 1 | AD31: 0.03471649302 | AE31: =IF(COUNT(F31,H31,J31,L31:N31,P31,R31,T31,#REF!,X31)>5,5,COUNT(F31,H31,J31,L31:N31,P31,R31,T31,#REF!,X31)) -> 1 | AF31: =IFERROR(IF(AC31>5,AVERAGE(SMALL((F31,H31,J31,L31,N31,P31,R31,T31,V31,X31,Z31,AB31),{1,2,3,4,5})),AD31),"No race run") -> 0.03471649302
B32: McGregor | C32: Steph | D32: F | AA32: 0.05966435185 | AB32: =97.3%*(AA32*86400)*POWER((6.2138818/10),1.07)/86400 -> 0.03489202415 | AC32: 1 | AD32: 0.03489202415 | AE32: =IF(COUNT(F32,H32,J32,L32:N32,P32,R32,T32,#REF!,X32)>5,5,COUNT(F32,H32,J32,L32:N32,P32,R32,T32,#REF!,X32)) -> 0 | AF32: =IFERROR(IF(AC32>5,AVERAGE(SMALL((F32,H32,J32,L32,N32,P32,R32,T32,V32,X32,Z32,AB32),{1,2,3,4,5})),AD32),"No race run") -> 0.03489202415
B33: Baughan | C33: Paul | D33: M | E33: 0.07976851852 | F33: =98.2%*(E33*86400)*POWER((6.2138818/13.1094),1.07)/86400 -> 0.03523934269 | AC33: 1 | AD33: 0.03523934269 | AE33: =IF(COUNT(F33,H33,J33,L33:N33,P33,R33,T33,#REF!,X33)>5,5,COUNT(F33,H33,J33,L33:N33,P33,R33,T33,#REF!,X33)) -> 1 | AF33: =IFERROR(IF(AC33>5,AVERAGE(SMALL((F33,H33,J33,L33,N33,P33,R33,T33,V33,X33,Z33,AB33),{1,2,3,4,5})),AD33),"No race run") -> 0.03523934269
B34: Atkinson | C34: Michael | D34: M | I34: 0.03636574074 | J34: =98.7%*(I34) -> 0.03589298611 | Q34: 0.02121527778 | R34: =99.9%*(Q34*86400)*POWER((6.2138818/3.9),1.07)/86400 -> 0.0348877915 | AC34: 2 | AD34: 0.03539038881 | AE34: =IF(COUNT(F34,H34,J34,L34:N34,P34,R34,T34,#REF!,X34)>5,5,COUNT(F34,H34,J34,L34:N34,P34,R34,T34,#REF!,X34)) -> 2 | AF34: =IFERROR(IF(AC34>5,AVERAGE(SMALL((F34,H34,J34,L34,N34,P34,R34,T34,V34,X34,Z34,AB34),{1,2,3,4,5})),AD34),"No race run") -> 0.03539038881
B35: Dobson | C35: Stuart | D35: M | K35: 0.04408564815 | L35: =98.1%*(K35*86400)*POWER((6.2138818/7.45645),1.07)/86400 -> 0.0355840419 | M35: 0.08737268519 | N35: =95.2%*(M35*86400)*POWER((6.2138818/13.1094),1.07)/86400 -> 0.03741945141 | O35: 0.02878472222 | P35: =98.4%*(O35*86400)*POWER((6.2138818/5),1.07)/86400 -> 0.03574025392 | Q35: 0.02181712963 | R35: =99.9%*(Q35*86400)*POWER((6.2138818/3.9),1.07)/86400 -> 0.03587751608 | W35: 0.03508101852 | X35: =99.8%*(W35) -> 0.03501085648 | Y35: 0.0359837963 | Z35: =98.7%*(Y35) -> 0.03551600694 | AA35: 0.06190972222 | AB35: =97.3%*(AA35*86400)*POWER((6.2138818/10),1.07)/86400 -> 0.03620512846 | AC35: 7 | AD35: 0.03590760788 | AE35: =IF(COUNT(F35,H35,J35,L35:N35,P35,R35,T35,#REF!,X35)>5,5,COUNT(F35,H35,J35,L35:N35,P35,R35,T35,#REF!,X35)) -> 5 | AF35: =IFERROR(IF(AC35>5,AVERAGE(SMALL((F35,H35,J35,L35,N35,P35,R35,T35,V35,X35,Z35,AB35),{1,2,3,4,5})),AD35),"No race run") -> 0.03554573506
B36: Findlay | C36: Valerie | D36: F | G36: 0.0603587963 | H36: =99.3%*(G36*86400)*POWER((6.2138818/10),1.07)/86400 -> 0.03602369159 | I36: 0.03653935185 | J36: =98.7%*(I36) -> 0.03606434028 | O36: 0.02943287037 | P36: =98.4%*(O36*86400)*POWER((6.2138818/5),1.07)/86400 -> 0.03654502039 | Q36: 0.02137731481 | R36: =99.9%*(Q36*86400)*POWER((6.2138818/3.9),1.07)/86400 -> 0.03515425581 | U36: 0.08094907407 | V36: =99.6%*(U36*86400)*POWER((6.2138818/13.1094),1.07)/86400 -> 0.03627070598 | AA36: 0.06310185185 | AB36: =97.3%*(AA36*86400)*POWER((6.2138818/10),1.07)/86400 -> 0.03690229208 | AC36: 6 | AD36: 0.03616005102 | AE36: =IF(COUNT(F36,H36,J36,L36:N36,P36,R36,T36,#REF!,X36)>5,5,COUNT(F36,H36,J36,L36:N36,P36,R36,T36,#REF!,X36)) -> 4 | AF36: =IFERROR(IF(AC36>5,AVERAGE(SMALL((F36,H36,J36,L36,N36,P36,R36,T36,V36,X36,Z36,AB36),{1,2,3,4,5})),AD36),"No race run") -> 0.03601160281
B37: Lopez | C37: Gill | D37: F | G37: 0.05916666667 | H37: =99.3%*(G37*86400)*POWER((6.2138818/10),1.07)/86400 -> 0.03531219777 | O37: 0.02998842593 | P37: =98.4%*(O37*86400)*POWER((6.2138818/5),1.07)/86400 -> 0.03723482022 | AC37: =COUNT(F37,H37,J37,L37,N37,P37,R37,T37,V37,X37,Z37,AB37) -> 2 | AD37: =IFERROR(AVERAGE(F37,H37,J37,L37,N37,P37,R37,T37,V37,X37,Z37,AB37),"No race run") -> 0.036273509 | AE37: =IF(COUNT(F37,H37,J37,L37:N37,P37,R37,T37,#REF!,X37)>5,5,COUNT(F37,H37,J37,L37:N37,P37,R37,T37,#REF!,X37)) -> 2 | AF37: =IFERROR(IF(AC37>5,AVERAGE(SMALL((F37,H37,J37,L37,N37,P37,R37,T37,V37,X37,Z37,AB37),{1,2,3,4,5})),AD37),"No race run") -> 0.036273509
B38: Gregory | C38: Alison | D38: F | U38: 0.08106481481 | V38: =99.6%*(U38*86400)*POWER((6.2138818/13.1094),1.07)/86400 -> 0.03632256572 | AC38: 1 | AD38: 0.03632256572 | AE38: =IF(COUNT(F38,H38,J38,L38:N38,P38,R38,T38,#REF!,X38)>5,5,COUNT(F38,H38,J38,L38:N38,P38,R38,T38,#REF!,X38)) -> 0 | AF38: =IFERROR(IF(AC38>5,AVERAGE(SMALL((F38,H38,J38,L38,N38,P38,R38,T38,V38,X38,Z38,AB38),{1,2,3,4,5})),AD38),"No race run") -> 0.03632256572
B39: Wilson | C39: Anne | D39: F | O39: 0.02998842593 | P39: =98.4%*(O39*86400)*POWER((6.2138818/5),1.07)/86400 -> 0.03723482022 | Q39: 0.02224537037 | R39: =99.9%*(Q39*86400)*POWER((6.2138818/3.9),1.07)/86400 -> 0.03658174319 | AC39: 2 | AD39: 0.03690828171 | AE39: =IF(COUNT(F39,H39,J39,L39:N39,P39,R39,T39,#REF!,X39)>5,5,COUNT(F39,H39,J39,L39:N39,P39,R39,T39,#REF!,X39)) -> 2 | AF39: =IFERROR(IF(AC39>5,AVERAGE(SMALL((F39,H39,J39,L39,N39,P39,R39,T39,V39,X39,Z39,AB39),{1,2,3,4,5})),AD39),"No race run") -> 0.03690828171
B40: Verdot | C40: Leigh | D40: F | M40: 0.1006597222 | N40: =95.2%*(M40*86400)*POWER((6.2138818/13.1094),1.07)/86400 -> 0.04310994422 | Q40: 0.02180555556 | R40: =99.9%*(Q40*86400)*POWER((6.2138818/3.9),1.07)/86400 -> 0.03585848292 | S40: 0.05042824074 | T40: =97.6%*(S40*86400)*POWER((6.2138818/8),1.07)/86400 -> 0.03755914921 | W40: 0.03684027778 | X40: =99.8%*(W40) -> 0.03676659722 | Y40: 0.03690972222 | Z40: =98.7%*(Y40) -> 0.03642989583 | AA40: 0.0655787037 | AB40: =97.3%*(AA40*86400)*POWER((6.2138818/10),1.07)/86400 -> 0.03835076796 | AC40: 6 | AD40: 0.03801247289 | AE40: =IF(COUNT(F40,H40,J40,L40:N40,P40,R40,T40,#REF!,X40)>5,5,COUNT(F40,H40,J40,L40:N40,P40,R40,T40,#REF!,X40)) -> 5 | AF40: =IFERROR(IF(AC40>5,AVERAGE(SMALL((F40,H40,J40,L40,N40,P40,R40,T40,V40,X40,Z40,AB40),{1,2,3,4,5})),AD40),"No race run") -> 0.03699297863
B41: Blair | C41: Sheena | D41: F | E41: 0.08559027778 | F41: =98.2%*(E41*86400)*POWER((6.2138818/13.1094),1.07)/86400 -> 0.03781122159 | G41: 0.06078703704 | H41: =99.3%*(G41*86400)*POWER((6.2138818/10),1.07)/86400 -> 0.03627927674 | AC41: 2 | AD41: 0.03704524916 | AE41: =IF(COUNT(F41,H41,J41,L41:N41,P41,R41,T41,#REF!,X41)>5,5,COUNT(F41,H41,J41,L41:N41,P41,R41,T41,#REF!,X41)) -> 2 | AF41: =IFERROR(IF(AC41>5,AVERAGE(SMALL((F41,H41,J41,L41,N41,P41,R41,T41,V41,X41,Z41,AB41),{1,2,3,4,5})),AD41),"No race run") -> 0.03704524916
B42: McKay | C42: Duncan | D42: M | G42: 0.06209490741 | H42: =99.3%*(G42*86400)*POWER((6.2138818/10),1.07)/86400 -> 0.03705984763 | AC42: 1 | AD42: 0.03705984763 | AE42: =IF(COUNT(F42,H42,J42,L42:N42,P42,R42,T42,#REF!,X42)>5,5,COUNT(F42,H42,J42,L42:N42,P42,R42,T42,#REF!,X42)) -> 1 | AF42: =IFERROR(IF(AC42>5,AVERAGE(SMALL((F42,H42,J42,L42,N42,P42,R42,T42,V42,X42,Z42,AB42),{1,2,3,4,5})),AD42),"No race run") -> 0.03705984763
B43: Beveridge | C43: Lynn | D43: F | O43: 0.02956018519 | P43: =98.4%*(O43*86400)*POWER((6.2138818/5),1.07)/86400 -> 0.03670309952 | Y43: 0.03837962963 | Z43: =98.7%*(Y43) -> 0.03788069444 | AC43: 2 | AD43: 0.03729189698 | AE43: =IF(COUNT(F43,H43,J43,L43:N43,P43,R43,T43,#REF!,X43)>5,5,COUNT(F43,H43,J43,L43:N43,P43,R43,T43,#REF!,X43)) -> 1 | AF43: =IFERROR(IF(AC43>5,AVERAGE(SMALL((F43,H43,J43,L43,N43,P43,R43,T43,V43,X43,Z43,AB43),{1,2,3,4,5})),AD43),"No race run") -> 0.03729189698
B44: Bilton | C44: Geoff | D44: M | G44: 0.06244212963 | H44: =99.3%*(G44*86400)*POWER((6.2138818/10),1.07)/86400 -> 0.03726707883 | I44: 0.03678240741 | J44: =98.7%*(I44) -> 0.03630423611 | AA44: 0.06621527778 | AB44: =97.3%*(AA44*86400)*POWER((6.2138818/10),1.07)/86400 -> 0.0387230398 | AC44: 3 | AD44: 0.03743145158 | AE44: =IF(COUNT(F44,H44,J44,L44:N44,P44,R44,T44,#REF!,X44)>5,5,COUNT(F44,H44,J44,L44:N44,P44,R44,T44,#REF!,X44)) -> 2 | AF44: =IFERROR(IF(AC44>5,AVERAGE(SMALL((F44,H44,J44,L44,N44,P44,R44,T44,V44,X44,Z44,AB44),{1,2,3,4,5})),AD44),"No race run") -> 0.03743145158
B45: Smith | C45: Alison | D45: F | G45: 0.06282407407 | H45: =99.3%*(G45*86400)*POWER((6.2138818/10),1.07)/86400 -> 0.03749503316 | I45: 0.03865740741 | J45: =98.7%*(I45) -> 0.03815486111 | Q45: 0.02297453704 | R45: =99.9%*(Q45*86400)*POWER((6.2138818/3.9),1.07)/86400 -> 0.03778083259 | U45: 0.08395833333 | V45: =99.6%*(U45*86400)*POWER((6.2138818/13.1094),1.07)/86400 -> 0.03761905936 | Y45: 0.03827546296 | Z45: =98.7%*(Y45) -> 0.03777788194 | AA45: 0.06626157407 | AB45: =97.3%*(AA45*86400)*POWER((6.2138818/10),1.07)/86400 -> 0.03875011412 | AC45: 6 | AD45: 0.03792963038 | AE45: =IF(COUNT(F45,H45,J45,L45:N45,P45,R45,T45,#REF!,X45)>5,5,COUNT(F45,H45,J45,L45:N45,P45,R45,T45,#REF!,X45)) -> 3 | AF45: =IFERROR(IF(AC45>5,AVERAGE(SMALL((F45,H45,J45,L45,N45,P45,R45,T45,V45,X45,Z45,AB45),{1,2,3,4,5})),AD45),"No race run") -> 0.03776553363
B46: Aird | C46: Andrew | D46: M | I46: 0.03836805556 | J46: =98.7%*(I46) -> 0.03786927083 | O46: 0.03173611111 | P46: =98.4%*(O46*86400)*POWER((6.2138818/5),1.07)/86400 -> 0.03940481554 | Q46: 0.02259259259 | R46: =99.9%*(Q46*86400)*POWER((6.2138818/3.9),1.07)/86400 -> 0.03715273814 | Y46: 0.0390162037 | Z46: =98.7%*(Y46) -> 0.03850899306 | AC46: 4 | AD46: 0.03823395439 | AE46: =IF(COUNT(F46,H46,J46,L46:N46,P46,R46,T46,#REF!,X46)>5,5,COUNT(F46,H46,J46,L46:N46,P46,R46,T46,#REF!,X46)) -> 3 | AF46: =IFERROR(IF(AC46>5,AVERAGE(SMALL((F46,H46,J46,L46,N46,P46,R46,T46,V46,X46,Z46,AB46),{1,2,3,4,5})),AD46),"No race run") -> 0.03823395439
B47: Donnachie | C47: Gordon | D47: M | W47: 0.03841435185 | X47: =99.8%*(W47) -> 0.03833752315 | AC47: 1 | AD47: 0.03833752315 | AE47: =IF(COUNT(F47,H47,J47,L47:N47,P47,R47,T47,#REF!,X47)>5,5,COUNT(F47,H47,J47,L47:N47,P47,R47,T47,#REF!,X47)) -> 1 | AF47: =IFERROR(IF(AC47>5,AVERAGE(SMALL((F47,H47,J47,L47,N47,P47,R47,T47,V47,X47,Z47,AB47),{1,2,3,4,5})),AD47),"No race run") -> 0.03833752315
B48: Mitchell | C48: Karen | D48: F | E48: 0.0897337963 | F48: =98.2%*(E48*86400)*POWER((6.2138818/13.1094),1.07)/86400 -> 0.03964170398 | G48: 0.06440972222 | H48: =99.3%*(G48*86400)*POWER((6.2138818/10),1.07)/86400 -> 0.03844138901 | I48: 0.03806712963 | J48: =98.7%*(I48) -> 0.03757225694 | Q48: 0.0231712963 | R48: =99.9%*(Q48*86400)*POWER((6.2138818/3.9),1.07)/86400 -> 0.03810439639 | AC48: 4 | AD48: 0.03843993658 | AE48: =IF(COUNT(F48,H48,J48,L48:N48,P48,R48,T48,#REF!,X48)>5,5,COUNT(F48,H48,J48,L48:N48,P48,R48,T48,#REF!,X48)) -> 4 | AF48: =IFERROR(IF(AC48>5,AVERAGE(SMALL((F48,H48,J48,L48,N48,P48,R48,T48,V48,X48,Z48,AB48),{1,2,3,4,5})),AD48),"No race run") -> 0.03843993658
B49: Macintyre | C49: Anne | D49: F | G49: 0.06582175926 | H49: =99.3%*(G49*86400)*POWER((6.2138818/10),1.07)/86400 -> 0.03928412925 | I49: 0.0415162037 | J49: =98.7%*(I49) -> 0.04097649306 | U49: 0.08715277778 | V49: =99.6%*(U49*86400)*POWER((6.2138818/13.1094),1.07)/86400 -> 0.03905038834 | AA49: 0.06747685185 | AB49: =97.3%*(AA49*86400)*POWER((6.2138818/10),1.07)/86400 -> 0.0394608149 | AC49: 4 | AD49: 0.03969295639 | AE49: =IF(COUNT(F49,H49,J49,L49:N49,P49,R49,T49,#REF!,X49)>5,5,COUNT(F49,H49,J49,L49:N49,P49,R49,T49,#REF!,X49)) -> 2 | AF49: =IFERROR(IF(AC49>5,AVERAGE(SMALL((F49,H49,J49,L49,N49,P49,R49,T49,V49,X49,Z49,AB49),{1,2,3,4,5})),AD49),"No race run") -> 0.03969295639
B50: Rennie | C50: Amanda | D50: F | I50: 0.03993055556 | J50: =98.7%*(I50) -> 0.03941145833 | M50: 0.1040393519 | N50: =95.2%*(M50*86400)*POWER((6.2138818/13.1094),1.07)/86400 -> 0.0445573518 | O50: 0.03109953704 | P50: =98.4%*(O50*86400)*POWER((6.2138818/5),1.07)/86400 -> 0.03861441989 | AC50: 3 | AD50: 0.04086107667 | AE50: =IF(COUNT(F50,H50,J50,L50:N50,P50,R50,T50,#REF!,X50)>5,5,COUNT(F50,H50,J50,L50:N50,P50,R50,T50,#REF!,X50)) -> 4 | AF50: =IFERROR(IF(AC50>5,AVERAGE(SMALL((F50,H50,J50,L50,N50,P50,R50,T50,V50,X50,Z50,AB50),{1,2,3,4,5})),AD50),"No race run") -> 0.04086107667
B51: Houston | C51: Alison | D51: F | O51: 0.03295138889 | P51: =98.4%*(O51*86400)*POWER((6.2138818/5),1.07)/86400 -> 0.04091375267 | AC51: 1 | AD51: 0.04091375267 | AE51: =IF(COUNT(F51,H51,J51,L51:N51,P51,R51,T51,#REF!,X51)>5,5,COUNT(F51,H51,J51,L51:N51,P51,R51,T51,#REF!,X51)) -> 1 | AF51: =IFERROR(IF(AC51>5,AVERAGE(SMALL((F51,H51,J51,L51,N51,P51,R51,T51,V51,X51,Z51,AB51),{1,2,3,4,5})),AD51),"No race run") -> 0.04091375267
B52: Turnbull | C52: Wendy | D52: F | E52: 0.09392361111 | F52: =98.2%*(E52*86400)*POWER((6.2138818/13.1094),1.07)/86400 -> 0.0414926387 | G52: 0.06813657407 | H52: =99.3%*(G52*86400)*POWER((6.2138818/10),1.07)/86400 -> 0.04066567064 | AC52: 2 | AD52: 0.04107915467 | AE52: =IF(COUNT(F52,H52,J52,L52:N52,P52,R52,T52,#REF!,X52)>5,5,COUNT(F52,H52,J52,L52:N52,P52,R52,T52,#REF!,X52)) -> 2 | AF52: =IFERROR(IF(AC52>5,AVERAGE(SMALL((F52,H52,J52,L52,N52,P52,R52,T52,V52,X52,Z52,AB52),{1,2,3,4,5})),AD52),"No race run") -> 0.04107915467
B53: Bell | C53: Dianne | D53: F | I53: 0.03988425926 | J53: =98.7%*(I53) -> 0.03936576389 | Q53: 0.02604166667 | R53: =99.9%*(Q53*86400)*POWER((6.2138818/3.9),1.07)/86400 -> 0.04282462132 | AC53: 2 | AD53: 0.0410951926 | AE53: =IF(COUNT(F53,H53,J53,L53:N53,P53,R53,T53,#REF!,X53)>5,5,COUNT(F53,H53,J53,L53:N53,P53,R53,T53,#REF!,X53)) -> 2 | AF53: =IFERROR(IF(AC53>5,AVERAGE(SMALL((F53,H53,J53,L53,N53,P53,R53,T53,V53,X53,Z53,AB53),{1,2,3,4,5})),AD53),"No race run") -> 0.0410951926
B54: McLean | C54: Susan | D54: F | O54: 0.03417824074 | P54: =98.4%*(O54*86400)*POWER((6.2138818/5),1.07)/86400 -> 0.04243706064 | Q54: 0.02440972222 | R54: =99.9%*(Q54*86400)*POWER((6.2138818/3.9),1.07)/86400 -> 0.04014094505 | AC54: 2 | AD54: 0.04128900285 | AE54: =IF(COUNT(F54,H54,J54,L54:N54,P54,R54,T54,#REF!,X54)>5,5,COUNT(F54,H54,J54,L54:N54,P54,R54,T54,#REF!,X54)) -> 2 | AF54: =IFERROR(IF(AC54>5,AVERAGE(SMALL((F54,H54,J54,L54,N54,P54,R54,T54,V54,X54,Z54,AB54),{1,2,3,4,5})),AD54),"No race run") -> 0.04128900285
B55: Zabek | C55: Lynne | D55: F | G55: 0.07175925926 | H55: =99.3%*(G55*86400)*POWER((6.2138818/10),1.07)/86400 -> 0.0428277829 | I55: 0.04069444444 | J55: =98.7%*(I55) -> 0.04016541667 | AC55: 2 | AD55: 0.04149659979 | AE55: =IF(COUNT(F55,H55,J55,L55:N55,P55,R55,T55,#REF!,X55)>5,5,COUNT(F55,H55,J55,L55:N55,P55,R55,T55,#REF!,X55)) -> 2 | AF55: =IFERROR(IF(AC55>5,AVERAGE(SMALL((F55,H55,J55,L55,N55,P55,R55,T55,V55,X55,Z55,AB55),{1,2,3,4,5})),AD55),"No race run") -> 0.04149659979
B56: Gillespie | C56: Lisa | D56: F | G56: 0.07701388889 | H56: =99.3%*(G56*86400)*POWER((6.2138818/10),1.07)/86400 -> 0.04596388185 | Q56: 0.02412037037 | R56: =99.9%*(Q56*86400)*POWER((6.2138818/3.9),1.07)/86400 -> 0.03966511592 | AA56: 0.06809027778 | AB56: =97.3%*(AA56*86400)*POWER((6.2138818/10),1.07)/86400 -> 0.03981954958 | AC56: 3 | AD56: 0.04181618245 | AE56: =IF(COUNT(F56,H56,J56,L56:N56,P56,R56,T56,#REF!,X56)>5,5,COUNT(F56,H56,J56,L56:N56,P56,R56,T56,#REF!,X56)) -> 2 | AF56: =IFERROR(IF(AC56>5,AVERAGE(SMALL((F56,H56,J56,L56,N56,P56,R56,T56,V56,X56,Z56,AB56),{1,2,3,4,5})),AD56),"No race run") -> 0.04181618245
B57: Marsh | C57: Karen | D57: F | Q57: 0.0259837963 | R57: =99.9%*(Q57*86400)*POWER((6.2138818/3.9),1.07)/86400 -> 0.04272945549 | AA57: 0.07038194444 | AB57: =97.3%*(AA57*86400)*POWER((6.2138818/10),1.07)/86400 -> 0.0411597282 | AC57: 2 | AD57: 0.04194459185 | AE57: =IF(COUNT(F57,H57,J57,L57:N57,P57,R57,T57,#REF!,X57)>5,5,COUNT(F57,H57,J57,L57:N57,P57,R57,T57,#REF!,X57)) -> 1 | AF57: =IFERROR(IF(AC57>5,AVERAGE(SMALL((F57,H57,J57,L57,N57,P57,R57,T57,V57,X57,Z57,AB57),{1,2,3,4,5})),AD57),"No race run") -> 0.04194459185
B58: Grieve | C58: Wendy | D58: F | M58: 0.09920138889 | N58: =95.2%*(M58*86400)*POWER((6.2138818/13.1094),1.07)/86400 -> 0.04248537793 | AC58: 1 | AD58: 0.04248537793 | AE58: =IF(COUNT(F58,H58,J58,L58:N58,P58,R58,T58,#REF!,X58)>5,5,COUNT(F58,H58,J58,L58:N58,P58,R58,T58,#REF!,X58)) -> 2 | AF58: =IFERROR(IF(AC58>5,AVERAGE(SMALL((F58,H58,J58,L58,N58,P58,R58,T58,V58,X58,Z58,AB58),{1,2,3,4,5})),AD58),"No race run") -> 0.04248537793
B59: Ward | C59: Linda | D59: F | I59: 0.0437037037 | J59: =98.7%*(I59) -> 0.04313555556 | AC59: 1 | AD59: 0.04313555556 | AE59: =IF(COUNT(F59,H59,J59,L59:N59,P59,R59,T59,#REF!,X59)>5,5,COUNT(F59,H59,J59,L59:N59,P59,R59,T59,#REF!,X59)) -> 1 | AF59: =IFERROR(IF(AC59>5,AVERAGE(SMALL((F59,H59,J59,L59,N59,P59,R59,T59,V59,X59,Z59,AB59),{1,2,3,4,5})),AD59),"No race run") -> 0.04313555556
B60: Thomson | C60: Susan | D60: F | E60: 0.1027083333 | F60: =98.2%*(E60*86400)*POWER((6.2138818/13.1094),1.07)/86400 -> 0.0453734659 | G60: 0.07018518519 | H60: =99.3%*(G60*86400)*POWER((6.2138818/10),1.07)/86400 -> 0.04188833476 | AC60: 2 | AD60: 0.04363090033 | AE60: =IF(COUNT(F60,H60,J60,L60:N60,P60,R60,T60,#REF!,X60)>5,5,COUNT(F60,H60,J60,L60:N60,P60,R60,T60,#REF!,X60)) -> 2 | AF60: =IFERROR(IF(AC60>5,AVERAGE(SMALL((F60,H60,J60,L60,N60,P60,R60,T60,V60,X60,Z60,AB60),{1,2,3,4,5})),AD60),"No race run") -> 0.04363090033
B61: Eaton | C61: Sarah | D61: F | I61: 0.04407407407 | J61: =98.7%*(I61) -> 0.04350111111 | Q61: 0.02586805556 | R61: =99.9%*(Q61*86400)*POWER((6.2138818/3.9),1.07)/86400 -> 0.04253912384 | W61: 0.04425925926 | X61: =99.8%*(W61) -> 0.04417074074 | AA61: 0.07668981481 | AB61: =97.3%*(AA61*86400)*POWER((6.2138818/10),1.07)/86400 -> 0.04484860369 | AC61: 4 | AD61: 0.04376489485 | AE61: =IF(COUNT(F61,H61,J61,L61:N61,P61,R61,T61,#REF!,X61)>5,5,COUNT(F61,H61,J61,L61:N61,P61,R61,T61,#REF!,X61)) -> 3 | AF61: =IFERROR(IF(AC61>5,AVERAGE(SMALL((F61,H61,J61,L61,N61,P61,R61,T61,V61,X61,Z61,AB61),{1,2,3,4,5})),AD61),"No race run") -> 0.04376489485
B62: Lopez | C62: Hannah | D62: F | G62: 0.0734837963 | H62: =99.3%*(G62*86400)*POWER((6.2138818/10),1.07)/86400 -> 0.04385703123 | Q62: 0.0269212963 | R62: =99.9%*(Q62*86400)*POWER((6.2138818/3.9),1.07)/86400 -> 0.04427114186 | W62: 0.04398148148 | X62: =99.8%*(W62) -> 0.04389351852 | Y62: 0.04394675926 | Z62: =98.7%*(Y62) -> 0.04337545139 | AA62: 0.07902777778 | AB62: =97.3%*(AA62*86400)*POWER((6.2138818/10),1.07)/86400 -> 0.04621585663 | AC62: 5 | AD62: 0.04432259993 | AE62: =IF(COUNT(F62,H62,J62,L62:N62,P62,R62,T62,#REF!,X62)>5,5,COUNT(F62,H62,J62,L62:N62,P62,R62,T62,#REF!,X62)) -> 3 | AF62: =IFERROR(IF(AC62>5,AVERAGE(SMALL((F62,H62,J62,L62,N62,P62,R62,T62,V62,X62,Z62,AB62),{1,2,3,4,5})),AD62),"No race run") -> 0.04432259993
B63: Nouillan | C63: Bill | D63: M | E63: 0.1216782407 | F63: =98.2%*(E63*86400)*POWER((6.2138818/13.1094),1.07)/86400 -> 0.05375380291 | AC63: 1 | AD63: 0.05375380291 | AE63: =IF(COUNT(F63,H63,J63,L63:N63,P63,R63,T63,#REF!,X63)>5,5,COUNT(F63,H63,J63,L63:N63,P63,R63,T63,#REF!,X63)) -> 1 | AF63: =IFERROR(IF(AC63>5,AVERAGE(SMALL((F63,H63,J63,L63,N63,P63,R63,T63,V63,X63,Z63,AB63),{1,2,3,4,5})),AD63),"No race run") -> 0.05375380291
AC64: =COUNT(F64,H64,J64,L64,N64,P64,R64,T64,V64,X64,Z64,AB64) -> 0 | AD64: =IFERROR(AVERAGE(F64,H64,J64,L64,N64,P64,R64,T64,V64,X64,Z64,AB64),"No race run") -> No race run | AE64: =IF(COUNT(F64,H64,J64,L64:N64,P64,R64,T64,#REF!,X64)>5,5,COUNT(F64,H64,J64,L64:N64,P64,R64,T64,#REF!,X64)) -> 0 | AF64: =IFERROR(IF(AC64>5,AVERAGE(SMALL((F64,H64,J64,L64,N64,P64,R64,T64,V64,X64,Z64,AB64),{1,2,3,4,5})),AD64),"No race run") -> No race run
AC65: 0 | AD65: No race run | AE65: =IF(COUNT(F65,H65,J65,L65:N65,P65,R65,T65,#REF!,X65)>5,5,COUNT(F65,H65,J65,L65:N65,P65,R65,T65,#REF!,X65)) -> 0 | AF65: =IFERROR(IF(AC65>5,AVERAGE(SMALL((F65,H65,J65,L65,N65,P65,R65,T65,V65,X65,Z65,AB65),{1,2,3,4,5})),AD65),"No race run") -> No race run
AC66: 0 | AD66: No race run | AE66: =IF(COUNT(F66,H66,J66,L66:N66,P66,R66,T66,#REF!,X66)>5,5,COUNT(F66,H66,J66,L66:N66,P66,R66,T66,#REF!,X66)) -> 0 | AF66: =IFERROR(IF(AC66>5,AVERAGE(SMALL((F66,H66,J66,L66,N66,P66,R66,T66,V66,X66,Z66,AB66),{1,2,3,4,5})),AD66),"No race run") -> No race run
AC67: 0 | AD67: No race run | AE67: =IF(COUNT(F67,H67,J67,L67:N67,P67,R67,T67,#REF!,X67)>5,5,COUNT(F67,H67,J67,L67:N67,P67,R67,T67,#REF!,X67)) -> 0 | AF67: =IFERROR(IF(AC67>5,AVERAGE(SMALL((F67,H67,J67,L67,N67,P67,R67,T67,V67,X67,Z67,AB67),{1,2,3,4,5})),AD67),"No race run") -> No race run
AC68: 0 | AD68: No race run | AE68: =IF(COUNT(F68,H68,J68,L68:N68,P68,R68,T68,#REF!,X68)>5,5,COUNT(F68,H68,J68,L68:N68,P68,R68,T68,#REF!,X68)) -> 0 | AF68: =IFERROR(IF(AC68>5,AVERAGE(SMALL((F68,H68,J68,L68,N68,P68,R68,T68,V68,X68,Z68,AB68),{1,2,3,4,5})),AD68),"No race run") -> No race run
AC69: 0 | AD69: No race run | AE69: =IF(COUNT(F69,H69,J69,L69:N69,P69,R69,T69,#REF!,X69)>5,5,COUNT(F69,H69,J69,L69:N69,P69,R69,T69,#REF!,X69)) -> 0 | AF69: =IFERROR(IF(AC69>5,AVERAGE(SMALL((F69,H69,J69,L69,N69,P69,R69,T69,V69,X69,Z69,AB69),{1,2,3,4,5})),AD69),"No race run") -> No race run
AC70: =COUNT(F70,H70,J70,L70,N70,P70,R70,T70,V70,X70,Z70,AB70) -> 0 | AD70: =IFERROR(AVERAGE(F70,H70,J70,L70,N70,P70,R70,T70,V70,X70,Z70,AB70),"No race run") -> No race run | AE70: =IF(COUNT(F70,H70,J70,L70:N70,P70,R70,T70,#REF!,X70)>5,5,COUNT(F70,H70,J70,L70:N70,P70,R70,T70,#REF!,X70)) -> 0 | AF70: =IFERROR(IF(AC70>5,AVERAGE(SMALL((F70,H70,J70,L70,N70,P70,R70,T70,V70,X70,Z70,AB70),{1,2,3,4,5})),AD70),"No race run") -> No race run
AC71: 0 | AD71: =IFERROR(AVERAGE(F71,H71,J71,L71,N71, P71,R71,T71,V71,X71,Z71),"No race run") -> No race run | AE71: =IF(COUNT(F71,H71,J71,L71:N71,P71,R71,T71,#REF!,X71)>5,5,COUNT(F71,H71,J71,L71:N71,P71,R71,T71,#REF!,X71)) -> 0 | AF71: =IFERROR(IF(AC71>5,AVERAGE(SMALL((F71,H71,J71,L71,N71,P71,R71,T71,V71,X71,Z71,AB71),{1,2,3,4,5})),AD71),"No race run") -> No race run
AC72: 0 | AD72: No race run | AE72: =IF(COUNT(F72,H72,J72,L72:N72,P72,R72,T72,#REF!,X72)>5,5,COUNT(F72,H72,J72,L72:N72,P72,R72,T72,#REF!,X72)) -> 0 | AF72: =IFERROR(IF(AC72>5,AVERAGE(SMALL((F72,H72,J72,L72,N72,P72,R72,T72,V72,X72,Z72,AB72),{1,2,3,4,5})),AD72),"No race run") -> No race run
AC73: 0 | AD73: No race run | AE73: =IF(COUNT(F73,H73,J73,L73:N73,P73,R73,T73,#REF!,X73)>5,5,COUNT(F73,H73,J73,L73:N73,P73,R73,T73,#REF!,X73)) -> 0 | AF73: =IFERROR(IF(AC73>5,AVERAGE(SMALL((F73,H73,J73,L73,N73,P73,R73,T73,V73,X73,Z73,AB73),{1,2,3,4,5})),AD73),"No race run") -> No race run
AC74: 0 | AD74: No race run | AE74: =IF(COUNT(F74,H74,J74,L74:N74,P74,R74,T74,#REF!,X74)>5,5,COUNT(F74,H74,J74,L74:N74,P74,R74,T74,#REF!,X74)) -> 0 | AF74: =IFERROR(IF(AC74>5,AVERAGE(SMALL((F74,H74,J74,L74,N74,P74,R74,T74,V74,X74,Z74,AB74),{1,2,3,4,5})),AD74),"No race run") -> No race run
AC75: 0 | AD75: No race run | AE75: =IF(COUNT(F75,H75,J75,L75:N75,P75,R75,T75,#REF!,X75)>5,5,COUNT(F75,H75,J75,L75:N75,P75,R75,T75,#REF!,X75)) -> 0 | AF75: =IFERROR(IF(AC75>5,AVERAGE(SMALL((F75,H75,J75,L75,N75,P75,R75,T75,V75,X75,Z75,AB75),{1,2,3,4,5})),AD75),"No race run") -> No race run
AC76: 0 | AD76: No race run | AE76: =IF(COUNT(F76,H76,J76,L76:N76,P76,R76,T76,#REF!,X76)>5,5,COUNT(F76,H76,J76,L76:N76,P76,R76,T76,#REF!,X76)) -> 0 | AF76: =IFERROR(IF(AC76>5,AVERAGE(SMALL((F76,H76,J76,L76,N76,P76,R76,T76,V76,X76,Z76,AB76),{1,2,3,4,5})),AD76),"No race run") -> No race run
AC77: 0 | AD77: No race run | AE77: =IF(COUNT(F77,H77,J77,L77:N77,P77,R77,T77,#REF!,X77)>5,5,COUNT(F77,H77,J77,L77:N77,P77,R77,T77,#REF!,X77)) -> 0 | AF77: =IFERROR(IF(AC77>5,AVERAGE(SMALL((F77,H77,J77,L77,N77,P77,R77,T77,V77,X77,Z77,AB77),{1,2,3,4,5})),AD77),"No race run") -> No race run
AC78: 0 | AD78: No race run | AE78: =IF(COUNT(F78,H78,J78,L78:N78,P78,R78,T78,#REF!,X78)>5,5,COUNT(F78,H78,J78,L78:N78,P78,R78,T78,#REF!,X78)) -> 0 | AF78: =IFERROR(IF(AC78>5,AVERAGE(SMALL((F78,H78,J78,L78,N78,P78,R78,T78,V78,X78,Z78,AB78),{1,2,3,4,5})),AD78),"No race run") -> No race run
AC79: 0 | AD79: No race run | AE79: =IF(COUNT(F79,H79,J79,L79:N79,P79,R79,T79,#REF!,X79)>5,5,COUNT(F79,H79,J79,L79:N79,P79,R79,T79,#REF!,X79)) -> 0 | AF79: =IFERROR(IF(AC79>5,AVERAGE(SMALL((F79,H79,J79,L79,N79,P79,R79,T79,V79,X79,Z79,AB79),{1,2,3,4,5})),AD79),"No race run") -> No race run
AC80: 0 | AD80: No race run | AE80: =IF(COUNT(F80,H80,J80,L80:N80,P80,R80,T80,#REF!,X80)>5,5,COUNT(F80,H80,J80,L80:N80,P80,R80,T80,#REF!,X80)) -> 0 | AF80: =IFERROR(IF(AC80>5,AVERAGE(SMALL((F80,H80,J80,L80,N80,P80,R80,T80,V80,X80,Z80,AB80),{1,2,3,4,5})),AD80),"No race run") -> No race run
AC81: 0 | AD81: No race run | AE81: =IF(COUNT(F81,H81,J81,L81:N81,P81,R81,T81,#REF!,X81)>5,5,COUNT(F81,H81,J81,L81:N81,P81,R81,T81,#REF!,X81)) -> 0 | AF81: =IFERROR(IF(AC81>5,AVERAGE(SMALL((F81,H81,J81,L81,N81,P81,R81,T81,V81,X81,Z81,AB81),{1,2,3,4,5})),AD81),"No race run") -> No race run
AC82: 0 | AD82: No race run | AE82: =IF(COUNT(F82,H82,J82,L82:N82,P82,R82,T82,#REF!,X82)>5,5,COUNT(F82,H82,J82,L82:N82,P82,R82,T82,#REF!,X82)) -> 0 | AF82: =IFERROR(IF(AC82>5,AVERAGE(SMALL((F82,H82,J82,L82,N82,P82,R82,T82,V82,X82,Z82,AB82),{1,2,3,4,5})),AD82),"No race run") -> No race run
AC83: 0 | AD83: No race run | AE83: =IF(COUNT(F83,H83,J83,L83:N83,P83,R83,T83,#REF!,X83)>5,5,COUNT(F83,H83,J83,L83:N83,P83,R83,T83,#REF!,X83)) -> 0 | AF83: =IFERROR(IF(AC83>5,AVERAGE(SMALL((F83,H83,J83,L83,N83,P83,R83,T83,V83,X83,Z83,AB83),{1,2,3,4,5})),AD83),"No race run") -> No race run
AC84: 0 | AD84: No race run | AE84: =IF(COUNT(F84,H84,J84,L84:N84,P84,R84,T84,#REF!,X84)>5,5,COUNT(F84,H84,J84,L84:N84,P84,R84,T84,#REF!,X84)) -> 0 | AF84: =IFERROR(IF(AC84>5,AVERAGE(SMALL((F84,H84,J84,L84,N84,P84,R84,T84,V84,X84,Z84,AB84),{1,2,3,4,5})),AD84),"No race run") -> No race run
AC85: 0 | AD85: No race run | AE85: =IF(COUNT(F85,H85,J85,L85:N85,P85,R85,T85,#REF!,X85)>5,5,COUNT(F85,H85,J85,L85:N85,P85,R85,T85,#REF!,X85)) -> 0 | AF85: =IFERROR(IF(AC85>5,AVERAGE(SMALL((F85,H85,J85,L85,N85,P85,R85,T85,V85,X85,Z85,AB85),{1,2,3,4,5})),AD85),"No race run") -> No race run
AC86: 0 | AD86: No race run | AE86: =IF(COUNT(F86,H86,J86,L86:N86,P86,R86,T86,#REF!,X86)>5,5,COUNT(F86,H86,J86,L86:N86,P86,R86,T86,#REF!,X86)) -> 0 | AF86: =IFERROR(IF(AC86>5,AVERAGE(SMALL((F86,H86,J86,L86,N86, P86,R86,T86,V86,X86,Z86),{1,2,3,4,5})),AD86),"No race run") -> No race run
AC87: 0 | AD87: No race run | AE87: =IF(COUNT(F87,H87,J87,L87:N87,P87,R87,T87,#REF!,X87)>5,5,COUNT(F87,H87,J87,L87:N87,P87,R87,T87,#REF!,X87)) -> 0 | AF87: =IFERROR(IF(AC87>5,AVERAGE(SMALL((F87,H87,J87,L87,N87, P87,R87,T87,V87,X87,Z87),{1,2,3,4,5})),AD87),"No race run") -> No race run
AC88: 0 | AD88: No race run | AE88: =IF(COUNT(F88,H88,J88,L88:N88,P88,R88,T88,#REF!,X88)>5,5,COUNT(F88,H88,J88,L88:N88,P88,R88,T88,#REF!,X88)) -> 0 | AF88: =IFERROR(IF(AC88>5,AVERAGE(SMALL((F88,H88,J88,L88,N88, P88,R88,T88,V88,X88,Z88),{1,2,3,4,5})),AD88),"No race run") -> No race run
AC89: 0 | AD89: No race run | AE89: =IF(COUNT(F89,H89,J89,L89:N89,P89,R89,T89,#REF!,X89)>5,5,COUNT(F89,H89,J89,L89:N89,P89,R89,T89,#REF!,X89)) -> 0 | AF89: =IFERROR(IF(AC89>5,AVERAGE(SMALL((F89,H89,J89,L89,N89, P89,R89,T89,V89,X89,Z89),{1,2,3,4,5})),AD89),"No race run") -> No race run
AC90: 0 | AD90: No race run | AE90: =IF(COUNT(F90,H90,J90,L90:N90,P90,R90,T90,#REF!,X90)>5,5,COUNT(F90,H90,J90,L90:N90,P90,R90,T90,#REF!,X90)) -> 0 | AF90: =IFERROR(IF(AC90>5,AVERAGE(SMALL((F90,H90,J90,L90,N90, P90,R90,T90,V90,X90,Z90),{1,2,3,4,5})),AD90),"No race run") -> No race run
AC91: 0 | AD91: No race run | AE91: =IF(COUNT(F91,H91,J91,L91:N91,P91,R91,T91,#REF!,X91)>5,5,COUNT(F91,H91,J91,L91:N91,P91,R91,T91,#REF!,X91)) -> 0 | AF91: =IFERROR(IF(AC91>5,AVERAGE(SMALL((F91,H91,J91,L91,N91, P91,R91,T91,V91,X91,Z91),{1,2,3,4,5})),AD91),"No race run") -> No race run
AC92: 0 | AD92: No race run | AE92: =IF(COUNT(F92,H92,J92,L92:N92,P92,R92,T92,#REF!,X92)>5,5,COUNT(F92,H92,J92,L92:N92,P92,R92,T92,#REF!,X92)) -> 0 | AF92: =IFERROR(IF(AC92>5,AVERAGE(SMALL((F92,H92,J92,L92,N92, P92,R92,T92,V92,X92,Z92),{1,2,3,4,5})),AD92),"No race run") -> No race run
AC93: =COUNT(F93,H93,J93,L93,N93, P93,R93,T93,V93,X93,#REF!,Z93) -> 0 | AD93: No race run | AE93: =IF(COUNT(F93,H93,J93,L93:N93,P93,R93,T93,#REF!,X93)>5,5,COUNT(F93,H93,J93,L93:N93,P93,R93,T93,#REF!,X93)) -> 0 | AF93: =IFERROR(IF(AC93>5,AVERAGE(SMALL((F93,H93,J93,L93,N93, P93,R93,T93,V93,X93,Z93),{1,2,3,4,5})),AD93),"No race run") -> No race run
AC94: =COUNT(F94,H94,J94,L94,N94, P94,R94,T94,V94,X94,#REF!,Z94) -> 0 | AD94: =IFERROR(AVERAGE(F94,H94,J94,L94,N94, P94,R94,T94,V94,X94,Z94),"No race run") -> No race run | AE94: =IF(COUNT(F94,H94,J94,L94:N94,P94,R94,T94,#REF!,X94)>5,5,COUNT(F94,H94,J94,L94:N94,P94,R94,T94,#REF!,X94)) -> 0 | AF94: =IFERROR(IF(AC94>5,AVERAGE(SMALL((F94,H94,J94,L94,N94, P94,R94,T94,V94,X94,Z94),{1,2,3,4,5})),AD94),"No race run") -> No race run
AC95: =COUNT(F95,H95,J95,L95,N95, P95,R95,T95,V95,X95,#REF!,Z95) -> 0 | AD95: No race run | AE95: =IF(COUNT(F95,H95,J95,L95:N95,P95,R95,T95,#REF!,X95)>5,5,COUNT(F95,H95,J95,L95:N95,P95,R95,T95,#REF!,X95)) -> 0 | AF95: =IFERROR(IF(AC95>5,AVERAGE(SMALL((F95,H95,J95,L95,N95, P95,R95,T95,V95,X95,Z95),{1,2,3,4,5})),AD95),"No race run") -> No race run

Sheet Filtered
B1: Kinross Road Runners 2018 Club Championship
E2: Alloa Half | F2: Alloa Half | G2: Tay Ten | H2: Tay Ten | I2: Kinross PTA 10k | J2: Kinross PTA 10k | K2: Dunblane 12 | L2: Dunblane 12 | M2: Rattray Half | N2: Rattray Half | O2: Brig Bash 5m | P2: Brig Bash 5m | Q2: Kn'khill 3.9M | R2: Kn'hill 3.9M | S2: Ceres 8M | T2: Ceres 8M | U2: Highland Half | V2: Highland Half | W2: P'lochry 10km | X2: P'lochry 10km | Y2: Linlithgow 10k | Z2: Linlithgow 10k | AA2: Templeton 10 | AB2: Templeton 10 | AC2: No. of Races | AD2: Average Time | AE2: No. Races for ranking | AF2: Best 5 Average Time
E3: Actual | F3: SSS 1.4 | G3: Actual | H3: SSS 0.7 | I3: Actual | J3: SSS 1.3 | K3: Actual | L3: SSS 1.9 | M3: 10k Equiv | N3: SSS 4.8 | O3: Actual | P3: SSS 1.6 | Q3: Actual | R3: SSS 0.1 | S3: Actual | T3: SSS 2.4 | U3: Actual | V3: SSS 0.4 | W3: Actual | X3: SSS 0.2 | Y3: Actual | Z3: SSS 1.3 | AA3: Actual | AB3: SSS 2.7
B4: Surname | C4: First | E4: hh:mm:ss | F4: hh:mm:ss | G4: hh:mm:ss | H4: hh:mm:ss | I4: hh:mm:ss | J4: hh:mm:ss | K4: hh:mm:ss | L4: hh:mm:ss | M4: hh:mm:ss | N4: hh:mm:ss | O4: hh:mm:ss | P4: hh:mm:ss | Q4: hh:mm:ss | R4: hh:mm:ss | S4: hh:mm:ss | T4: hh:mm:ss | U4: hh:mm:ss | V4: hh:mm:ss | W4: hh:mm:ss | X4: hh:mm:ss | Y4: hh:mm:ss | Z4: hh:mm:ss | AA4: hh:mm:ss | AB4: hh:mm:ss | AD4: hh:mm:ss | AF4: hh:mm:ss
B5: Test | C5: Test | E5: 1.157407407e-05 | F5: =98.2%*(E5*86400)*POWER((6.2138818/13.1094),1.07)/86400 -> 5.113079322e-06 | G5: 1.157407407e-05 | H5: =99.3%*(G5*86400)*POWER((6.2138818/10),1.07)/86400 -> 6.90770692e-06 | I5: 1.157407407e-05 | J5: =98.7%*(I5) -> 1.142361111e-05 | K5: 1.157407407e-05 | L5: =98.1%*(K5*86400)*POWER((6.2138818/7.45645),1.07)/86400 -> 9.342095536e-06 | M5: 1.157407407e-05 | N5: =95.2%*(M5*86400)*POWER((6.2138818/13.1094),1.07)/86400 -> 4.956875269e-06 | O5: 1.157407407e-05 | P5: =98.4%*(O5*86400)*POWER((6.2138818/5),1.07)/86400 -> 1.437082988e-05 | Q5: 1.157407407e-05 | R5: =99.9%*(Q5*86400)*POWER((6.2138818/3.9),1.07)/86400 -> 1.903316503e-05 | S5: 1.157407407e-05 | T5: =97.6%*(S5*86400)*POWER((6.2138818/8),1.07)/86400 -> 8.620415242e-06 | V5: =99.6%*(U5*86400)*POWER((6.2138818/13.1094),1.07)/86400 -> 0 | W5: 1.157407407e-05 | X5: =99.8%*(W5) -> 1.155092593e-05 | Y5: 1.157407407e-05 | Z5: =98.7%*(Y5) -> 1.142361111e-05 | AA5: 1.157407407e-05 | AB5: =97.3%*(AA5*86400)*POWER((6.2138818/10),1.07)/86400 -> 6.768578885e-06 | AC5: =COUNT(F5,H5,J5,L5,N5,P5,R5,T5,V5,X5,Z5,AB5) -> 12 | AD5: =IFERROR(AVERAGE(F5,H5,J5,L5,N5,P5,R5,T5,V5,X5,Z5,AB5),"No race run") -> 9.125907853e-06 | AE5: =IF(COUNT(F5,H5,J5,L5:N5,P5,R5,T5,#REF!,X5)>5,5,COUNT(F5,H5,J5,L5:N5,P5,R5,T5,#REF!,X5)) -> 5 | AF5: =IFERROR(IF(AC5>5,AVERAGE(SMALL((F5,H5,J5,L5,N5,P5,R5,T5,V5,X5,Z5,AB5),{1,2,3,4,5})),AD5),"No race run") -> 4.749248079e-06
B6: Scott | C6: David | D6: M | E6: 0.05627314815 | F6: =98.2%*(E6*86400)*POWER((6.2138818/13.1094),1.07)/86400 -> 0.02485979166 | G6: 0.04189814815 | H6: =99.3%*(G6*86400)*POWER((6.2138818/10),1.07)/86400 -> 0.02500589905 | I6: 0.02541666667 | J6: =98.7%*(I6) -> 0.02508625 | K6: 0.03136574074 | L6: =98.1%*(K6*86400)*POWER((6.2138818/7.45645),1.07)/86400 -> 0.0253170789 | Q6: 0.01525462963 | R6: =99.9%*(Q6*86400)*POWER((6.2138818/3.9),1.07)/86400 -> 0.02508571151 | S6: 0.03365740741 | T6: =97.6%*(S6*86400)*POWER((6.2138818/8),1.07)/86400 -> 0.02506816752 | Y6: 0.02528935185 | Z6: =98.7%*(Y6) -> 0.02496059028 | AC6: 7 | AD6: 0.02505478413 | AE6: =IF(COUNT(F6,H6,J6,L6:N6,P6,R6,T6,#REF!,X6)>5,5,COUNT(F6,H6,J6,L6:N6,P6,R6,T6,#REF!,X6)) -> 5 | AF6: =IFERROR(IF(AC6>5,AVERAGE(SMALL((F6,H6,J6,L6,N6,P6,R6,T6,V6,X6,Z6,AB6),{1,2,3,4,5})),AD6),"No race run") -> 0.02499603201
B7: Strachan | C7: Scott | D7: M | E7: 0.05804398148 | F7: =98.2%*(E7*86400)*POWER((6.2138818/13.1094),1.07)/86400 -> 0.0256420928 | G7: 0.04243055556 | H7: =99.3%*(G7*86400)*POWER((6.2138818/10),1.07)/86400 -> 0.02532365357 | O7: 0.02049768519 | P7: =98.4%*(O7*86400)*POWER((6.2138818/5),1.07)/86400 -> 0.02545073972 | Q7: 0.01530092593 | R7: =99.9%*(Q7*86400)*POWER((6.2138818/3.9),1.07)/86400 -> 0.02516184417 | U7: 0.05635416667 | V7: =99.6%*(U7*86400)*POWER((6.2138818/13.1094),1.07)/86400 -> 0.02525051007 | W7: 0.02503472222 | X7: =99.8%*(W7) -> 0.02498465278 | Y7: 0.02564814815 | Z7: 0.02531472222 | AC7: 7 | AD7: 0.02530403076 | AE7: =IF(COUNT(F7,H7,J7,L7:N7,P7,R7,T7,#REF!,X7)>5,5,COUNT(F7,H7,J7,L7:N7,P7,R7,T7,#REF!,X7)) -> 5 | AF7: =IFERROR(IF(AC7>5,AVERAGE(SMALL((F7,H7,J7,L7,N7,P7,R7,T7,V7,X7,Z7,AB7),{1,2,3,4,5})),AD7),"No race run") -> 0.02520707656
B8: Kemp | C8: Allan | D8: M | E8: 0.06328703704 | F8: =98.2%*(E8*86400)*POWER((6.2138818/13.1094),1.07)/86400 -> 0.02795831773 | G8: 0.04303240741 | H8: =99.3%*(G8*86400)*POWER((6.2138818/10),1.07)/86400 -> 0.02568285433 | Y8: 0.02613425926 | Z8: 0.02579451389 | AC8: 3 | AD8: 0.02647856198 | AE8: =IF(COUNT(F8,H8,J8,L8:N8,P8,R8,T8,#REF!,X8)>5,5,COUNT(F8,H8,J8,L8:N8,P8,R8,T8,#REF!,X8)) -> 2 | AF8: =IFERROR(IF(AC8>5,AVERAGE(SMALL((F8,H8,J8,L8,N8,P8,R8,T8,V8,X8,Z8,AB8),{1,2,3,4,5})),AD8),"No race run") -> 0.02647856198
B9: Beveridge | C9: John | D9: M | O9: 0.02195601852 | P9: =98.4%*(O9*86400)*POWER((6.2138818/5),1.07)/86400 -> 0.02726146429 | U9: 0.05846064815 | V9: =99.6%*(U9*86400)*POWER((6.2138818/13.1094),1.07)/86400 -> 0.02619435743 | Y9: 0.02674768519 | Z9: 0.02639996528 | AC9: 3 | AD9: 0.02661859567 | AE9: =IF(COUNT(F9,H9,J9,L9:N9,P9,R9,T9,#REF!,X9)>5,5,COUNT(F9,H9,J9,L9:N9,P9,R9,T9,#REF!,X9)) -> 1 | AF9: =IFERROR(IF(AC9>5,AVERAGE(SMALL((F9,H9,J9,L9,N9,P9,R9,T9,V9,X9,Z9,AB9),{1,2,3,4,5})),AD9),"No race run") -> 0.02661859567
B10: Newton | C10: Matt | D10: M | E10: 0.06138888889 | F10: =98.2%*(E10*86400)*POWER((6.2138818/13.1094),1.07)/86400 -> 0.02711977272 | I10: 0.02719907407 | J10: =98.7%*(I10) -> 0.02684548611 | Y10: 0.02642361111 | Z10: 0.02608010417 | AC10: 3 | AD10: 0.02668178767 | AE10: =IF(COUNT(F10,H10,J10,L10:N10,P10,R10,T10,#REF!,X10)>5,5,COUNT(F10,H10,J10,L10:N10,P10,R10,T10,#REF!,X10)) -> 2 | AF10: =IFERROR(IF(AC10>5,AVERAGE(SMALL((F10,H10,J10,L10,N10,P10,R10,T10,V10,X10,Z10,AB10),{1,2,3,4,5})),AD10),"No race run") -> 0.02668178767
B11: Hill | C11: Martin | D11: M | E11: 0.06302083333 | F11: =98.2%*(E11*86400)*POWER((6.2138818/13.1094),1.07)/86400 -> 0.02784071691 | G11: 0.04667824074 | H11: =99.3%*(G11*86400)*POWER((6.2138818/10),1.07)/86400 -> 0.02785878201 | I11: 0.02825231481 | J11: =98.7%*(I11) -> 0.02788503472 | K11: 0.0346875 | L11: =98.1%*(K11*86400)*POWER((6.2138818/7.45645),1.07)/86400 -> 0.02799826032 | Q11: 0.01716435185 | R11: =99.9%*(Q11*86400)*POWER((6.2138818/3.9),1.07)/86400 -> 0.02822618374 | Y11: 0.02840277778 | Z11: 0.02803354167 | AC11: 6 | AD11: 0.02797375323 | AE11: =IF(COUNT(F11,H11,J11,L11:N11,P11,R11,T11,#REF!,X11)>5,5,COUNT(F11,H11,J11,L11:N11,P11,R11,T11,#REF!,X11)) -> 5 | AF11: =IFERROR(IF(AC11>5,AVERAGE(SMALL((F11,H11,J11,L11,N11,P11,R11,T11,V11,X11,Z11,AB11),{1,2,3,4,5})),AD11),"No race run") -> 0.02792326713
B12: Freck | C12: Sandy | D12: M | G12: 0.04717592593 | H12: =99.3%*(G12*86400)*POWER((6.2138818/10),1.07)/86400 -> 0.02815581341 | AC12: 1 | AD12: 0.02815581341 | AE12: =IF(COUNT(F12,H12,J12,L12:N12,P12,R12,T12,#REF!,X12)>5,5,COUNT(F12,H12,J12,L12:N12,P12,R12,T12,#REF!,X12)) -> 1 | AF12: =IFERROR(IF(AC12>5,AVERAGE(SMALL((F12,H12,J12,L12,N12,P12,R12,T12,V12,X12,Z12,AB12),{1,2,3,4,5})),AD12),"No race run") -> 0.02815581341
B13: Gordon | C13: Jillian | D13: F | G13: 0.04628472222 | H13: =99.3%*(G13*86400)*POWER((6.2138818/10),1.07)/86400 -> 0.02762391997 | Y13: 0.02915509259 | Z13: =98.7%*(Y13) -> 0.02877607639 | AC13: 2 | AD13: 0.02819999818 | AE13: =IF(COUNT(F13,H13,J13,L13:N13,P13,R13,T13,#REF!,X13)>5,5,COUNT(F13,H13,J13,L13:N13,P13,R13,T13,#REF!,X13)) -> 1 | AF13: =IFERROR(IF(AC13>5,AVERAGE(SMALL((F13,H13,J13,L13,N13,P13,R13,T13,V13,X13,Z13,AB13),{1,2,3,4,5})),AD13),"No race run") -> 0.02819999818
B14: Nisbet | C14: Fiona | D14: F | G14: 0.04802083333 | H14: =99.3%*(G14*86400)*POWER((6.2138818/10),1.07)/86400 -> 0.02866007601 | K14: 0.03635416667 | L14: =98.1%*(K14*86400)*POWER((6.2138818/7.45645),1.07)/86400 -> 0.02934352208 | O14: 0.02341435185 | P14: =98.4%*(O14*86400)*POWER((6.2138818/5),1.07)/86400 -> 0.02907218885 | Q14: 0.01787037037 | R14: =99.9%*(Q14*86400)*POWER((6.2138818/3.9),1.07)/86400 -> 0.02938720681 | Y14: 0.03 | Z14: =98.7%*(Y14) -> 0.02961 | AC14: 5 | AD14: 0.02921459875 | AE14: =IF(COUNT(F14,H14,J14,L14:N14,P14,R14,T14,#REF!,X14)>5,5,COUNT(F14,H14,J14,L14:N14,P14,R14,T14,#REF!,X14)) -> 4 | AF14: =IFERROR(IF(AC14>5,AVERAGE(SMALL((F14,H14,J14,L14,N14,P14,R14,T14,V14,X14,Z14,AB14),{1,2,3,4,5})),AD14),"No race run") -> 0.02921459875
B15: Allcoat | C15: Paul | D15: M | E15: 0.06719907407 | F15: =98.2%*(E15*86400)*POWER((6.2138818/13.1094),1.07)/86400 -> 0.02968653854 | O15: 0.02334490741 | P15: =98.4%*(O15*86400)*POWER((6.2138818/5),1.07)/86400 -> 0.02898596387 | Q15: 0.01765046296 | R15: =99.9%*(Q15*86400)*POWER((6.2138818/3.9),1.07)/86400 -> 0.02902557667 | Y15: 0.03030092593 | Z15: =98.7%*(Y15) -> 0.02990701389 | AA15: 0.05068287037 | AB15: =97.3%*(AA15*86400)*POWER((6.2138818/10),1.07)/86400 -> 0.02963960694 | AC15: 5 | AD15: 0.02944893998 | AE15: =IF(COUNT(F15,H15,J15,L15:N15,P15,R15,T15,#REF!,X15)>5,5,COUNT(F15,H15,J15,L15:N15,P15,R15,T15,#REF!,X15)) -> 3 | AF15: =IFERROR(IF(AC15>5,AVERAGE(SMALL((F15,H15,J15,L15,N15,P15,R15,T15,V15,X15,Z15,AB15),{1,2,3,4,5})),AD15),"No race run") -> 0.02944893998
B16: Freck | C16: Sandy | D16: M | E16: 0.06934027778 | F16: =98.2%*(E16*86400)*POWER((6.2138818/13.1094),1.07)/86400 -> 0.03063245822 | I16: 0.02880787037 | J16: =98.7%*(I16) -> 0.02843336806 | AC16: 2 | AD16: 0.02953291314 | AE16: =IF(COUNT(F16,H16,J16,L16:N16,P16,R16,T16,#REF!,X16)>5,5,COUNT(F16,H16,J16,L16:N16,P16,R16,T16,#REF!,X16)) -> 2 | AF16: =IFERROR(IF(AC16>5,AVERAGE(SMALL((F16,H16,J16,L16,N16,P16,R16,T16,V16,X16,Z16,AB16),{1,2,3,4,5})),AD16),"No race run") -> 0.02953291314
B17: Jones | C17: Tim | D17: M | I17: 0.03021990741 | J17: =98.7%*(I17) -> 0.02982704861 | K17: 0.03684027778 | L17: =98.1%*(K17*86400)*POWER((6.2138818/7.45645),1.07)/86400 -> 0.02973589009 | S17: 0.04018518519 | T17: =97.6%*(S17*86400)*POWER((6.2138818/8),1.07)/86400 -> 0.02993008172 | U17: 0.06524305556 | V17: =99.6%*(U17*86400)*POWER((6.2138818/13.1094),1.07)/86400 -> 0.02923333852 | W17: 0.0290162037 | X17: =99.8%*(W17) -> 0.0289581713 | AC17: 5 | AD17: 0.02953690605 | AE17: =IF(COUNT(F17,H17,J17,L17:N17,P17,R17,T17,#REF!,X17)>5,5,COUNT(F17,H17,J17,L17:N17,P17,R17,T17,#REF!,X17)) -> 4 | AF17: =IFERROR(IF(AC17>5,AVERAGE(SMALL((F17,H17,J17,L17,N17,P17,R17,T17,V17,X17,Z17,AB17),{1,2,3,4,5})),AD17),"No race run") -> 0.02953690605
B18: Hutt | C18: Sarah | D18: F | M18: 0.07128472222 | N18: =95.2%*(M18*86400)*POWER((6.2138818/13.1094),1.07)/86400 -> 0.03052939478 | O18: 0.02365740741 | P18: =98.4%*(O18*86400)*POWER((6.2138818/5),1.07)/86400 -> 0.02937397628 | Q18: 0.0178587963 | R18: =99.9%*(Q18*86400)*POWER((6.2138818/3.9),1.07)/86400 -> 0.02936817364 | U18: 0.06646990741 | V18: =99.6%*(U18*86400)*POWER((6.2138818/13.1094),1.07)/86400 -> 0.02978305182 | Y18: 0.03013888889 | Z18: =98.7%*(Y18) -> 0.02974708333 | AA18: 0.05096064815 | AB18: =97.3%*(AA18*86400)*POWER((6.2138818/10),1.07)/86400 -> 0.02980205283 | AC18: 6 | AD18: 0.02976728878 | AE18: =IF(COUNT(F18,H18,J18,L18:N18,P18,R18,T18,#REF!,X18)>5,5,COUNT(F18,H18,J18,L18:N18,P18,R18,T18,#REF!,X18)) -> 4 | AF18: =IFERROR(IF(AC18>5,AVERAGE(SMALL((F18,H18,J18,L18,N18,P18,R18,T18,V18,X18,Z18,AB18),{1,2,3,4,5})),AD18),"No race run") -> 0.02961486758
B19: Sinclair | C19: Ally | D19: M | E19: 0.06934027778 | F19: =98.2%*(E19*86400)*POWER((6.2138818/13.1094),1.07)/86400 -> 0.03063245822 | I19: 0.0318287037 | J19: =98.7%*(I19) -> 0.03141493056 | O19: 0.02375 | P19: =98.4%*(O19*86400)*POWER((6.2138818/5),1.07)/86400 -> 0.02948894292 | Q19: 0.01746527778 | R19: =99.9%*(Q19*86400)*POWER((6.2138818/3.9),1.07)/86400 -> 0.02872104603 | AC19: 4 | AD19: 0.03006434443 | AE19: =IF(COUNT(F19,H19,J19,L19:N19,P19,R19,T19,#REF!,X19)>5,5,COUNT(F19,H19,J19,L19:N19,P19,R19,T19,#REF!,X19)) -> 4 | AF19: =IFERROR(IF(AC19>5,AVERAGE(SMALL((F19,H19,J19,L19,N19,P19,R19,T19,V19,X19,Z19,AB19),{1,2,3,4,5})),AD19),"No race run") -> 0.03006434443
B20: Blair | C20: Steven | D20: M | I20: 0.03203703704 | J20: =98.7%*(I20) -> 0.03162055556 | O20: 0.0240162037 | P20: =98.4%*(O20*86400)*POWER((6.2138818/5),1.07)/86400 -> 0.029819472 | Q20: 0.01759259259 | R20: =99.9%*(Q20*86400)*POWER((6.2138818/3.9),1.07)/86400 -> 0.02893041085 | Y20: 0.03037037037 | Z20: =98.7%*(Y20) -> 0.02997555556 | AC20: 4 | AD20: 0.03008649849 | AE20: =IF(COUNT(F20,H20,J20,L20:N20,P20,R20,T20,#REF!,X20)>5,5,COUNT(F20,H20,J20,L20:N20,P20,R20,T20,#REF!,X20)) -> 3 | AF20: =IFERROR(IF(AC20>5,AVERAGE(SMALL((F20,H20,J20,L20,N20,P20,R20,T20,V20,X20,Z20,AB20),{1,2,3,4,5})),AD20),"No race run") -> 0.03008649849
B21: Creese | C21: Jonathan | D21: M | I21: 0.03097222222 | J21: =98.7%*(I21) -> 0.03056958333 | AC21: 1 | AD21: 0.03056958333 | AE21: =IF(COUNT(F21,H21,J21,L21:N21,P21,R21,T21,#REF!,X21)>5,5,COUNT(F21,H21,J21,L21:N21,P21,R21,T21,#REF!,X21)) -> 1 | AF21: =IFERROR(IF(AC21>5,AVERAGE(SMALL((F21,H21,J21,L21,N21,P21,R21,T21,V21,X21,Z21,AB21),{1,2,3,4,5})),AD21),"No race run") -> 0.03056958333
B22: Dobson | C22: Judith | D22: F | G22: 0.04981481481 | H22: =99.3%*(G22*86400)*POWER((6.2138818/10),1.07)/86400 -> 0.02973077058 | K22: 0.03912037037 | L22: =98.1%*(K22*86400)*POWER((6.2138818/7.45645),1.07)/86400 -> 0.03157628291 | M22: 0.07318287037 | N22: =95.2%*(M22*86400)*POWER((6.2138818/13.1094),1.07)/86400 -> 0.03134232233 | O22: 0.02583333333 | P22: =98.4%*(O22*86400)*POWER((6.2138818/5),1.07)/86400 -> 0.0320756923 | Q22: 0.01900462963 | R22: =99.9%*(Q22*86400)*POWER((6.2138818/3.9),1.07)/86400 -> 0.03125245698 | W22: 0.03050925926 | X22: =99.8%*(W22) -> 0.03044824074 | Y22: 0.03105324074 | Z22: =98.7%*(Y22) -> 0.03064954861 | AA22: 0.05262731481 | AB22: =97.3%*(AA22*86400)*POWER((6.2138818/10),1.07)/86400 -> 0.03077672819 | AC22: 8 | AD22: 0.03098150533 | AE22: =IF(COUNT(F22,H22,J22,L22:N22,P22,R22,T22,#REF!,X22)>5,5,COUNT(F22,H22,J22,L22:N22,P22,R22,T22,#REF!,X22)) -> 5 | AF22: =IFERROR(IF(AC22>5,AVERAGE(SMALL((F22,H22,J22,L22,N22,P22,R22,T22,V22,X22,Z22,AB22),{1,2,3,4,5})),AD22),"No race run") -> 0.03057154902
B23: Boyle | C23: John | D23: M | AA23: 0.05288194444 | AB23: =97.3%*(AA23*86400)*POWER((6.2138818/10),1.07)/86400 -> 0.03092563693 | AC23: 1 | AD23: 0.03092563693 | AE23: =IF(COUNT(F23,H23,J23,L23:N23,P23,R23,T23,#REF!,X23)>5,5,COUNT(F23,H23,J23,L23:N23,P23,R23,T23,#REF!,X23)) -> 0 | AF23: =IFERROR(IF(AC23>5,AVERAGE(SMALL((F23,H23,J23,L23,N23,P23,R23,T23,V23,X23,Z23,AB23),{1,2,3,4,5})),AD23),"No race run") -> 0.03092563693
B24: Reilly | C24: Jim | D24: M | E24: 0.07825231481 | F24: =98.2%*(E24*86400)*POWER((6.2138818/13.1094),1.07)/86400 -> 0.0345695293 | G24: 0.055 | H24: =99.3%*(G24*86400)*POWER((6.2138818/10),1.07)/86400 -> 0.03282542328 | I24: 0.03209490741 | J24: =98.7%*(I24) -> 0.03167767361 | K24: 0.03986111111 | L24: =98.1%*(K24*86400)*POWER((6.2138818/7.45645),1.07)/86400 -> 0.03217417703 | O24: 0.02546296296 | P24: =98.4%*(O24*86400)*POWER((6.2138818/5),1.07)/86400 -> 0.03161582574 | W24: 0.03165509259 | X24: =99.8%*(W24) -> 0.03159178241 | Y24: 0.0312037037 | Z24: =98.7%*(Y24) -> 0.03079805556 | AC24: 7 | AD24: 0.03217892385 | AE24: =IF(COUNT(F24,H24,J24,L24:N24,P24,R24,T24,#REF!,X24)>5,5,COUNT(F24,H24,J24,L24:N24,P24,R24,T24,#REF!,X24)) -> 5 | AF24: =IFERROR(IF(AC24>5,AVERAGE(SMALL((F24,H24,J24,L24,N24,P24,R24,T24,V24,X24,Z24,AB24),{1,2,3,4,5})),AD24),"No race run") -> 0.03157150287
B25: Hookham | C25: Peter | D25: M | G25: 0.05310185185 | H25: =99.3%*(G25*86400)*POWER((6.2138818/10),1.07)/86400 -> 0.03169255935 | AC25: 1 | AD25: 0.03169255935 | AE25: =IF(COUNT(F25,H25,J25,L25:N25,P25,R25,T25,#REF!,X25)>5,5,COUNT(F25,H25,J25,L25:N25,P25,R25,T25,#REF!,X25)) -> 1 | AF25: =IFERROR(IF(AC25>5,AVERAGE(SMALL((F25,H25,J25,L25,N25,P25,R25,T25,V25,X25,Z25,AB25),{1,2,3,4,5})),AD25),"No race run") -> 0.03169255935
B26: Pool | C26: Richard | D26: M | E26: 0.07549768519 | F26: =98.2%*(E26*86400)*POWER((6.2138818/13.1094),1.07)/86400 -> 0.03335261642 | G26: 0.05408564815 | H26: =99.3%*(G26*86400)*POWER((6.2138818/10),1.07)/86400 -> 0.03227971444 | I26: 0.03152777778 | J26: =98.7%*(I26) -> 0.03111791667 | Q26: 0.01934027778 | R26: =99.9%*(Q26*86400)*POWER((6.2138818/3.9),1.07)/86400 -> 0.03180441877 | AC26: 4 | AD26: 0.03213866657 | AE26: =IF(COUNT(F26,H26,J26,L26:N26,P26,R26,T26,#REF!,X26)>5,5,COUNT(F26,H26,J26,L26:N26,P26,R26,T26,#REF!,X26)) -> 4 | AF26: =IFERROR(IF(AC26>5,AVERAGE(SMALL((F26,H26,J26,L26,N26,P26,R26,T26,V26,X26,Z26,AB26),{1,2,3,4,5})),AD26),"No race run") -> 0.03213866657
B27: Muncey | C27: Laura | D27: F | E27: 0.07476851852 | F27: =98.2%*(E27*86400)*POWER((6.2138818/13.1094),1.07)/86400 -> 0.03303049242 | G27: 0.05445601852 | H27: =99.3%*(G27*86400)*POWER((6.2138818/10),1.07)/86400 -> 0.03250076106 | K27: 0.0415162037 | L27: =98.1%*(K27*86400)*POWER((6.2138818/7.45645),1.07)/86400 -> 0.03351009669 | O27: 0.02565972222 | P27: =98.4%*(O27*86400)*POWER((6.2138818/5),1.07)/86400 -> 0.03186012985 | U27: 0.07885416667 | V27: =99.6%*(U27*86400)*POWER((6.2138818/13.1094),1.07)/86400 -> 0.03533204459 | Y27: 0.03502314815 | Z27: =98.7%*(Y27) -> 0.03456784722 | AC27: 6 | AD27: 0.0334668953 | AE27: =IF(COUNT(F27,H27,J27,L27:N27,P27,R27,T27,#REF!,X27)>5,5,COUNT(F27,H27,J27,L27:N27,P27,R27,T27,#REF!,X27)) -> 4 | AF27: =IFERROR(IF(AC27>5,AVERAGE(SMALL((F27,H27,J27,L27,N27,P27,R27,T27,V27,X27,Z27,AB27),{1,2,3,4,5})),AD27),"No race run") -> 0.03309386545
B28: Woodrow | C28: Andrew | D28: M | I28: 0.03399305556 | J28: =98.7%*(I28) -> 0.03355114583 | AC28: 1 | AD28: 0.03355114583 | AE28: =IF(COUNT(F28,H28,J28,L28:N28,P28,R28,T28,#REF!,X28)>5,5,COUNT(F28,H28,J28,L28:N28,P28,R28,T28,#REF!,X28)) -> 1 | AF28: =IFERROR(IF(AC28>5,AVERAGE(SMALL((F28,H28,J28,L28,N28,P28,R28,T28,V28,X28,Z28,AB28),{1,2,3,4,5})),AD28),"No race run") -> 0.03355114583
B29: Nisbet | C29: Stewart | D29: M | O29: 0.02782407407 | P29: =98.4%*(O29*86400)*POWER((6.2138818/5),1.07)/86400 -> 0.03454747504 | Y29: 0.03378472222 | Z29: =98.7%*(Y29) -> 0.03334552083 | AC29: 2 | AD29: 0.03394649793 | AE29: =IF(COUNT(F29,H29,J29,L29:N29,P29,R29,T29,#REF!,X29)>5,5,COUNT(F29,H29,J29,L29:N29,P29,R29,T29,#REF!,X29)) -> 1 | AF29: =IFERROR(IF(AC29>5,AVERAGE(SMALL((F29,H29,J29,L29,N29,P29,R29,T29,V29,X29,Z29,AB29),{1,2,3,4,5})),AD29),"No race run") -> 0.03394649793
B30: Blair | C30: Gordon | D30: M | Y30: 0.03450231481 | Z30: =98.7%*(Y30) -> 0.03405378472 | AC30: 1 | AD30: 0.03405378472 | AE30: =IF(COUNT(F30,H30,J30,L30:N30,P30,R30,T30,#REF!,X30)>5,5,COUNT(F30,H30,J30,L30:N30,P30,R30,T30,#REF!,X30)) -> 0 | AF30: =IFERROR(IF(AC30>5,AVERAGE(SMALL((F30,H30,J30,L30,N30,P30,R30,T30,V30,X30,Z30,AB30),{1,2,3,4,5})),AD30),"No race run") -> 0.03405378472
B31: McLeod | C31: James | D31: M | Q31: 0.02111111111 | R31: =99.9%*(Q31*86400)*POWER((6.2138818/3.9),1.07)/86400 -> 0.03471649302 | AC31: 1 | AD31: 0.03471649302 | AE31: =IF(COUNT(F31,H31,J31,L31:N31,P31,R31,T31,#REF!,X31)>5,5,COUNT(F31,H31,J31,L31:N31,P31,R31,T31,#REF!,X31)) -> 1 | AF31: =IFERROR(IF(AC31>5,AVERAGE(SMALL((F31,H31,J31,L31,N31,P31,R31,T31,V31,X31,Z31,AB31),{1,2,3,4,5})),AD31),"No race run") -> 0.03471649302
B32: McGregor | C32: Steph | D32: F | AA32: 0.05966435185 | AB32: =97.3%*(AA32*86400)*POWER((6.2138818/10),1.07)/86400 -> 0.03489202415 | AC32: 1 | AD32: 0.03489202415 | AE32: =IF(COUNT(F32,H32,J32,L32:N32,P32,R32,T32,#REF!,X32)>5,5,COUNT(F32,H32,J32,L32:N32,P32,R32,T32,#REF!,X32)) -> 0 | AF32: =IFERROR(IF(AC32>5,AVERAGE(SMALL((F32,H32,J32,L32,N32,P32,R32,T32,V32,X32,Z32,AB32),{1,2,3,4,5})),AD32),"No race run") -> 0.03489202415
B33: Baughan | C33: Paul | D33: M | E33: 0.07976851852 | F33: =98.2%*(E33*86400)*POWER((6.2138818/13.1094),1.07)/86400 -> 0.03523934269 | AC33: 1 | AD33: 0.03523934269 | AE33: =IF(COUNT(F33,H33,J33,L33:N33,P33,R33,T33,#REF!,X33)>5,5,COUNT(F33,H33,J33,L33:N33,P33,R33,T33,#REF!,X33)) -> 1 | AF33: =IFERROR(IF(AC33>5,AVERAGE(SMALL((F33,H33,J33,L33,N33,P33,R33,T33,V33,X33,Z33,AB33),{1,2,3,4,5})),AD33),"No race run") -> 0.03523934269
B34: Atkinson | C34: Michael | D34: M | I34: 0.03636574074 | J34: =98.7%*(I34) -> 0.03589298611 | Q34: 0.02121527778 | R34: =99.9%*(Q34*86400)*POWER((6.2138818/3.9),1.07)/86400 -> 0.0348877915 | AC34: 2 | AD34: 0.03539038881 | AE34: =IF(COUNT(F34,H34,J34,L34:N34,P34,R34,T34,#REF!,X34)>5,5,COUNT(F34,H34,J34,L34:N34,P34,R34,T34,#REF!,X34)) -> 2 | AF34: =IFERROR(IF(AC34>5,AVERAGE(SMALL((F34,H34,J34,L34,N34,P34,R34,T34,V34,X34,Z34,AB34),{1,2,3,4,5})),AD34),"No race run") -> 0.03539038881
B35: Dobson | C35: Stuart | D35: M | K35: 0.04408564815 | L35: =98.1%*(K35*86400)*POWER((6.2138818/7.45645),1.07)/86400 -> 0.0355840419 | M35: 0.08737268519 | N35: =95.2%*(M35*86400)*POWER((6.2138818/13.1094),1.07)/86400 -> 0.03741945141 | O35: 0.02878472222 | P35: =98.4%*(O35*86400)*POWER((6.2138818/5),1.07)/86400 -> 0.03574025392 | Q35: 0.02181712963 | R35: =99.9%*(Q35*86400)*POWER((6.2138818/3.9),1.07)/86400 -> 0.03587751608 | W35: 0.03508101852 | X35: =99.8%*(W35) -> 0.03501085648 | Y35: 0.0359837963 | Z35: =98.7%*(Y35) -> 0.03551600694 | AA35: 0.06190972222 | AB35: =97.3%*(AA35*86400)*POWER((6.2138818/10),1.07)/86400 -> 0.03620512846 | AC35: 7 | AD35: 0.03590760788 | AE35: =IF(COUNT(F35,H35,J35,L35:N35,P35,R35,T35,#REF!,X35)>5,5,COUNT(F35,H35,J35,L35:N35,P35,R35,T35,#REF!,X35)) -> 5 | AF35: =IFERROR(IF(AC35>5,AVERAGE(SMALL((F35,H35,J35,L35,N35,P35,R35,T35,V35,X35,Z35,AB35),{1,2,3,4,5})),AD35),"No race run") -> 0.03554573506
B36: Findlay | C36: Valerie | D36: F | G36: 0.0603587963 | H36: =99.3%*(G36*86400)*POWER((6.2138818/10),1.07)/86400 -> 0.03602369159 | I36: 0.03653935185 | J36: =98.7%*(I36) -> 0.03606434028 | O36: 0.02943287037 | P36: =98.4%*(O36*86400)*POWER((6.2138818/5),1.07)/86400 -> 0.03654502039 | Q36: 0.02137731481 | R36: =99.9%*(Q36*86400)*POWER((6.2138818/3.9),1.07)/86400 -> 0.03515425581 | U36: 0.08094907407 | V36: =99.6%*(U36*86400)*POWER((6.2138818/13.1094),1.07)/86400 -> 0.03627070598 | AA36: 0.06310185185 | AB36: =97.3%*(AA36*86400)*POWER((6.2138818/10),1.07)/86400 -> 0.03690229208 | AC36: 6 | AD36: 0.03616005102 | AE36: =IF(COUNT(F36,H36,J36,L36:N36,P36,R36,T36,#REF!,X36)>5,5,COUNT(F36,H36,J36,L36:N36,P36,R36,T36,#REF!,X36)) -> 4 | AF36: =IFERROR(IF(AC36>5,AVERAGE(SMALL((F36,H36,J36,L36,N36,P36,R36,T36,V36,X36,Z36,AB36),{1,2,3,4,5})),AD36),"No race run") -> 0.03601160281
B37: Lopez | C37: Gill | D37: F | G37: 0.05916666667 | H37: =99.3%*(G37*86400)*POWER((6.2138818/10),1.07)/86400 -> 0.03531219777 | O37: 0.02998842593 | P37: =98.4%*(O37*86400)*POWER((6.2138818/5),1.07)/86400 -> 0.03723482022 | AC37: =COUNT(F37,H37,J37,L37,N37,P37,R37,T37,V37,X37,Z37,AB37) -> 2 | AD37: =IFERROR(AVERAGE(F37,H37,J37,L37,N37,P37,R37,T37,V37,X37,Z37,AB37),"No race run") -> 0.036273509 | AE37: =IF(COUNT(F37,H37,J37,L37:N37,P37,R37,T37,#REF!,X37)>5,5,COUNT(F37,H37,J37,L37:N37,P37,R37,T37,#REF!,X37)) -> 2 | AF37: =IFERROR(IF(AC37>5,AVERAGE(SMALL((F37,H37,J37,L37,N37,P37,R37,T37,V37,X37,Z37,AB37),{1,2,3,4,5})),AD37),"No race run") -> 0.036273509
B38: Gregory | C38: Alison | D38: F | U38: 0.08106481481 | V38: =99.6%*(U38*86400)*POWER((6.2138818/13.1094),1.07)/86400 -> 0.03632256572 | AC38: 1 | AD38: 0.03632256572 | AE38: =IF(COUNT(F38,H38,J38,L38:N38,P38,R38,T38,#REF!,X38)>5,5,COUNT(F38,H38,J38,L38:N38,P38,R38,T38,#REF!,X38)) -> 0 | AF38: =IFERROR(IF(AC38>5,AVERAGE(SMALL((F38,H38,J38,L38,N38,P38,R38,T38,V38,X38,Z38,AB38),{1,2,3,4,5})),AD38),"No race run") -> 0.03632256572
B39: Wilson | C39: Anne | D39: F | O39: 0.02998842593 | P39: =98.4%*(O39*86400)*POWER((6.2138818/5),1.07)/86400 -> 0.03723482022 | Q39: 0.02224537037 | R39: =99.9%*(Q39*86400)*POWER((6.2138818/3.9),1.07)/86400 -> 0.03658174319 | AC39: 2 | AD39: 0.03690828171 | AE39: =IF(COUNT(F39,H39,J39,L39:N39,P39,R39,T39,#REF!,X39)>5,5,COUNT(F39,H39,J39,L39:N39,P39,R39,T39,#REF!,X39)) -> 2 | AF39: =IFERROR(IF(AC39>5,AVERAGE(SMALL((F39,H39,J39,L39,N39,P39,R39,T39,V39,X39,Z39,AB39),{1,2,3,4,5})),AD39),"No race run") -> 0.03690828171
B40: Verdot | C40: Leigh | D40: F | M40: 0.1006597222 | N40: =95.2%*(M40*86400)*POWER((6.2138818/13.1094),1.07)/86400 -> 0.04310994422 | Q40: 0.02180555556 | R40: =99.9%*(Q40*86400)*POWER((6.2138818/3.9),1.07)/86400 -> 0.03585848292 | S40: 0.05042824074 | T40: =97.6%*(S40*86400)*POWER((6.2138818/8),1.07)/86400 -> 0.03755914921 | W40: 0.03684027778 | X40: =99.8%*(W40) -> 0.03676659722 | Y40: 0.03690972222 | Z40: =98.7%*(Y40) -> 0.03642989583 | AA40: 0.0655787037 | AB40: =97.3%*(AA40*86400)*POWER((6.2138818/10),1.07)/86400 -> 0.03835076796 | AC40: 6 | AD40: 0.03801247289 | AE40: =IF(COUNT(F40,H40,J40,L40:N40,P40,R40,T40,#REF!,X40)>5,5,COUNT(F40,H40,J40,L40:N40,P40,R40,T40,#REF!,X40)) -> 5 | AF40: =IFERROR(IF(AC40>5,AVERAGE(SMALL((F40,H40,J40,L40,N40,P40,R40,T40,V40,X40,Z40,AB40),{1,2,3,4,5})),AD40),"No race run") -> 0.03699297863
B41: Blair | C41: Sheena | D41: F | E41: 0.08559027778 | F41: =98.2%*(E41*86400)*POWER((6.2138818/13.1094),1.07)/86400 -> 0.03781122159 | G41: 0.06078703704 | H41: =99.3%*(G41*86400)*POWER((6.2138818/10),1.07)/86400 -> 0.03627927674 | AC41: 2 | AD41: 0.03704524916 | AE41: =IF(COUNT(F41,H41,J41,L41:N41,P41,R41,T41,#REF!,X41)>5,5,COUNT(F41,H41,J41,L41:N41,P41,R41,T41,#REF!,X41)) -> 2 | AF41: =IFERROR(IF(AC41>5,AVERAGE(SMALL((F41,H41,J41,L41,N41,P41,R41,T41,V41,X41,Z41,AB41),{1,2,3,4,5})),AD41),"No race run") -> 0.03704524916
B42: McKay | C42: Duncan | D42: M | G42: 0.06209490741 | H42: =99.3%*(G42*86400)*POWER((6.2138818/10),1.07)/86400 -> 0.03705984763 | AC42: 1 | AD42: 0.03705984763 | AE42: =IF(COUNT(F42,H42,J42,L42:N42,P42,R42,T42,#REF!,X42)>5,5,COUNT(F42,H42,J42,L42:N42,P42,R42,T42,#REF!,X42)) -> 1 | AF42: =IFERROR(IF(AC42>5,AVERAGE(SMALL((F42,H42,J42,L42,N42,P42,R42,T42,V42,X42,Z42,AB42),{1,2,3,4,5})),AD42),"No race run") -> 0.03705984763
B43: Beveridge | C43: Lynn | D43: F | O43: 0.02956018519 | P43: =98.4%*(O43*86400)*POWER((6.2138818/5),1.07)/86400 -> 0.03670309952 | Y43: 0.03837962963 | Z43: =98.7%*(Y43) -> 0.03788069444 | AC43: 2 | AD43: 0.03729189698 | AE43: =IF(COUNT(F43,H43,J43,L43:N43,P43,R43,T43,#REF!,X43)>5,5,COUNT(F43,H43,J43,L43:N43,P43,R43,T43,#REF!,X43)) -> 1 | AF43: =IFERROR(IF(AC43>5,AVERAGE(SMALL((F43,H43,J43,L43,N43,P43,R43,T43,V43,X43,Z43,AB43),{1,2,3,4,5})),AD43),"No race run") -> 0.03729189698
B44: Bilton | C44: Geoff | D44: M | G44: 0.06244212963 | H44: =99.3%*(G44*86400)*POWER((6.2138818/10),1.07)/86400 -> 0.03726707883 | I44: 0.03678240741 | J44: =98.7%*(I44) -> 0.03630423611 | AA44: 0.06621527778 | AB44: =97.3%*(AA44*86400)*POWER((6.2138818/10),1.07)/86400 -> 0.0387230398 | AC44: 3 | AD44: 0.03743145158 | AE44: =IF(COUNT(F44,H44,J44,L44:N44,P44,R44,T44,#REF!,X44)>5,5,COUNT(F44,H44,J44,L44:N44,P44,R44,T44,#REF!,X44)) -> 2 | AF44: =IFERROR(IF(AC44>5,AVERAGE(SMALL((F44,H44,J44,L44,N44,P44,R44,T44,V44,X44,Z44,AB44),{1,2,3,4,5})),AD44),"No race run") -> 0.03743145158
B45: Smith | C45: Alison | D45: F | G45: 0.06282407407 | H45: =99.3%*(G45*86400)*POWER((6.2138818/10),1.07)/86400 -> 0.03749503316 | I45: 0.03865740741 | J45: =98.7%*(I45) -> 0.03815486111 | Q45: 0.02297453704 | R45: =99.9%*(Q45*86400)*POWER((6.2138818/3.9),1.07)/86400 -> 0.03778083259 | U45: 0.08395833333 | V45: =99.6%*(U45*86400)*POWER((6.2138818/13.1094),1.07)/86400 -> 0.03761905936 | Y45: 0.03827546296 | Z45: =98.7%*(Y45) -> 0.03777788194 | AA45: 0.06626157407 | AB45: =97.3%*(AA45*86400)*POWER((6.2138818/10),1.07)/86400 -> 0.03875011412 | AC45: 6 | AD45: 0.03792963038 | AE45: =IF(COUNT(F45,H45,J45,L45:N45,P45,R45,T45,#REF!,X45)>5,5,COUNT(F45,H45,J45,L45:N45,P45,R45,T45,#REF!,X45)) -> 3 | AF45: =IFERROR(IF(AC45>5,AVERAGE(SMALL((F45,H45,J45,L45,N45,P45,R45,T45,V45,X45,Z45,AB45),{1,2,3,4,5})),AD45),"No race run") -> 0.03776553363
B46: Aird | C46: Andrew | D46: M | I46: 0.03836805556 | J46: =98.7%*(I46) -> 0.03786927083 | O46: 0.03173611111 | P46: =98.4%*(O46*86400)*POWER((6.2138818/5),1.07)/86400 -> 0.03940481554 | Q46: 0.02259259259 | R46: =99.9%*(Q46*86400)*POWER((6.2138818/3.9),1.07)/86400 -> 0.03715273814 | Y46: 0.0390162037 | Z46: =98.7%*(Y46) -> 0.03850899306 | AC46: 4 | AD46: 0.03823395439 | AE46: =IF(COUNT(F46,H46,J46,L46:N46,P46,R46,T46,#REF!,X46)>5,5,COUNT(F46,H46,J46,L46:N46,P46,R46,T46,#REF!,X46)) -> 3 | AF46: =IFERROR(IF(AC46>5,AVERAGE(SMALL((F46,H46,J46,L46,N46,P46,R46,T46,V46,X46,Z46,AB46),{1,2,3,4,5})),AD46),"No race run") -> 0.03823395439
B47: Donnachie | C47: Gordon | D47: M | W47: 0.03841435185 | X47: =99.8%*(W47) -> 0.03833752315 | AC47: 1 | AD47: 0.03833752315 | AE47: =IF(COUNT(F47,H47,J47,L47:N47,P47,R47,T47,#REF!,X47)>5,5,COUNT(F47,H47,J47,L47:N47,P47,R47,T47,#REF!,X47)) -> 1 | AF47: =IFERROR(IF(AC47>5,AVERAGE(SMALL((F47,H47,J47,L47,N47,P47,R47,T47,V47,X47,Z47,AB47),{1,2,3,4,5})),AD47),"No race run") -> 0.03833752315
B48: Mitchell | C48: Karen | D48: F | E48: 0.0897337963 | F48: =98.2%*(E48*86400)*POWER((6.2138818/13.1094),1.07)/86400 -> 0.03964170398 | G48: 0.06440972222 | H48: =99.3%*(G48*86400)*POWER((6.2138818/10),1.07)/86400 -> 0.03844138901 | I48: 0.03806712963 | J48: =98.7%*(I48) -> 0.03757225694 | Q48: 0.0231712963 | R48: =99.9%*(Q48*86400)*POWER((6.2138818/3.9),1.07)/86400 -> 0.03810439639 | AC48: 4 | AD48: 0.03843993658 | AE48: =IF(COUNT(F48,H48,J48,L48:N48,P48,R48,T48,#REF!,X48)>5,5,COUNT(F48,H48,J48,L48:N48,P48,R48,T48,#REF!,X48)) -> 4 | AF48: =IFERROR(IF(AC48>5,AVERAGE(SMALL((F48,H48,J48,L48,N48,P48,R48,T48,V48,X48,Z48,AB48),{1,2,3,4,5})),AD48),"No race run") -> 0.03843993658
B49: Macintyre | C49: Anne | D49: F | G49: 0.06582175926 | H49: =99.3%*(G49*86400)*POWER((6.2138818/10),1.07)/86400 -> 0.03928412925 | I49: 0.0415162037 | J49: =98.7%*(I49) -> 0.04097649306 | U49: 0.08715277778 | V49: =99.6%*(U49*86400)*POWER((6.2138818/13.1094),1.07)/86400 -> 0.03905038834 | AA49: 0.06747685185 | AB49: =97.3%*(AA49*86400)*POWER((6.2138818/10),1.07)/86400 -> 0.0394608149 | AC49: 4 | AD49: 0.03969295639 | AE49: =IF(COUNT(F49,H49,J49,L49:N49,P49,R49,T49,#REF!,X49)>5,5,COUNT(F49,H49,J49,L49:N49,P49,R49,T49,#REF!,X49)) -> 2 | AF49: =IFERROR(IF(AC49>5,AVERAGE(SMALL((F49,H49,J49,L49,N49,P49,R49,T49,V49,X49,Z49,AB49),{1,2,3,4,5})),AD49),"No race run") -> 0.03969295639
B50: Rennie | C50: Amanda | D50: F | I50: 0.03993055556 | J50: =98.7%*(I50) -> 0.03941145833 | M50: 0.1040393519 | N50: =95.2%*(M50*86400)*POWER((6.2138818/13.1094),1.07)/86400 -> 0.0445573518 | O50: 0.03109953704 | P50: =98.4%*(O50*86400)*POWER((6.2138818/5),1.07)/86400 -> 0.03861441989 | AC50: 3 | AD50: 0.04086107667 | AE50: =IF(COUNT(F50,H50,J50,L50:N50,P50,R50,T50,#REF!,X50)>5,5,COUNT(F50,H50,J50,L50:N50,P50,R50,T50,#REF!,X50)) -> 4 | AF50: =IFERROR(IF(AC50>5,AVERAGE(SMALL((F50,H50,J50,L50,N50,P50,R50,T50,V50,X50,Z50,AB50),{1,2,3,4,5})),AD50),"No race run") -> 0.04086107667
B51: Houston | C51: Alison | D51: F | O51: 0.03295138889 | P51: =98.4%*(O51*86400)*POWER((6.2138818/5),1.07)/86400 -> 0.04091375267 | AC51: 1 | AD51: 0.04091375267 | AE51: =IF(COUNT(F51,H51,J51,L51:N51,P51,R51,T51,#REF!,X51)>5,5,COUNT(F51,H51,J51,L51:N51,P51,R51,T51,#REF!,X51)) -> 1 | AF51: =IFERROR(IF(AC51>5,AVERAGE(SMALL((F51,H51,J51,L51,N51,P51,R51,T51,V51,X51,Z51,AB51),{1,2,3,4,5})),AD51),"No race run") -> 0.04091375267
B52: Turnbull | C52: Wendy | D52: F | E52: 0.09392361111 | F52: =98.2%*(E52*86400)*POWER((6.2138818/13.1094),1.07)/86400 -> 0.0414926387 | G52: 0.06813657407 | H52: =99.3%*(G52*86400)*POWER((6.2138818/10),1.07)/86400 -> 0.04066567064 | AC52: 2 | AD52: 0.04107915467 | AE52: =IF(COUNT(F52,H52,J52,L52:N52,P52,R52,T52,#REF!,X52)>5,5,COUNT(F52,H52,J52,L52:N52,P52,R52,T52,#REF!,X52)) -> 2 | AF52: =IFERROR(IF(AC52>5,AVERAGE(SMALL((F52,H52,J52,L52,N52,P52,R52,T52,V52,X52,Z52,AB52),{1,2,3,4,5})),AD52),"No race run") -> 0.04107915467
B53: Bell | C53: Dianne | D53: F | I53: 0.03988425926 | J53: =98.7%*(I53) -> 0.03936576389 | Q53: 0.02604166667 | R53: =99.9%*(Q53*86400)*POWER((6.2138818/3.9),1.07)/86400 -> 0.04282462132 | AC53: 2 | AD53: 0.0410951926 | AE53: =IF(COUNT(F53,H53,J53,L53:N53,P53,R53,T53,#REF!,X53)>5,5,COUNT(F53,H53,J53,L53:N53,P53,R53,T53,#REF!,X53)) -> 2 | AF53: =IFERROR(IF(AC53>5,AVERAGE(SMALL((F53,H53,J53,L53,N53,P53,R53,T53,V53,X53,Z53,AB53),{1,2,3,4,5})),AD53),"No race run") -> 0.0410951926
B54: McLean | C54: Susan | D54: F | O54: 0.03417824074 | P54: =98.4%*(O54*86400)*POWER((6.2138818/5),1.07)/86400 -> 0.04243706064 | Q54: 0.02440972222 | R54: =99.9%*(Q54*86400)*POWER((6.2138818/3.9),1.07)/86400 -> 0.04014094505 | AC54: 2 | AD54: 0.04128900285 | AE54: =IF(COUNT(F54,H54,J54,L54:N54,P54,R54,T54,#REF!,X54)>5,5,COUNT(F54,H54,J54,L54:N54,P54,R54,T54,#REF!,X54)) -> 2 | AF54: =IFERROR(IF(AC54>5,AVERAGE(SMALL((F54,H54,J54,L54,N54,P54,R54,T54,V54,X54,Z54,AB54),{1,2,3,4,5})),AD54),"No race run") -> 0.04128900285
B55: Zabek | C55: Lynne | D55: F | G55: 0.07175925926 | H55: =99.3%*(G55*86400)*POWER((6.2138818/10),1.07)/86400 -> 0.0428277829 | I55: 0.04069444444 | J55: =98.7%*(I55) -> 0.04016541667 | AC55: 2 | AD55: 0.04149659979 | AE55: =IF(COUNT(F55,H55,J55,L55:N55,P55,R55,T55,#REF!,X55)>5,5,COUNT(F55,H55,J55,L55:N55,P55,R55,T55,#REF!,X55)) -> 2 | AF55: =IFERROR(IF(AC55>5,AVERAGE(SMALL((F55,H55,J55,L55,N55,P55,R55,T55,V55,X55,Z55,AB55),{1,2,3,4,5})),AD55),"No race run") -> 0.04149659979
B56: Gillespie | C56: Lisa | D56: F | G56: 0.07701388889 | H56: =99.3%*(G56*86400)*POWER((6.2138818/10),1.07)/86400 -> 0.04596388185 | Q56: 0.02412037037 | R56: =99.9%*(Q56*86400)*POWER((6.2138818/3.9),1.07)/86400 -> 0.03966511592 | AA56: 0.06809027778 | AB56: =97.3%*(AA56*86400)*POWER((6.2138818/10),1.07)/86400 -> 0.03981954958 | AC56: 3 | AD56: 0.04181618245 | AE56: =IF(COUNT(F56,H56,J56,L56:N56,P56,R56,T56,#REF!,X56)>5,5,COUNT(F56,H56,J56,L56:N56,P56,R56,T56,#REF!,X56)) -> 2 | AF56: =IFERROR(IF(AC56>5,AVERAGE(SMALL((F56,H56,J56,L56,N56,P56,R56,T56,V56,X56,Z56,AB56),{1,2,3,4,5})),AD56),"No race run") -> 0.04181618245
B57: Marsh | C57: Karen | D57: F | Q57: 0.0259837963 | R57: =99.9%*(Q57*86400)*POWER((6.2138818/3.9),1.07)/86400 -> 0.04272945549 | AA57: 0.07038194444 | AB57: =97.3%*(AA57*86400)*POWER((6.2138818/10),1.07)/86400 -> 0.0411597282 | AC57: 2 | AD57: 0.04194459185 | AE57: =IF(COUNT(F57,H57,J57,L57:N57,P57,R57,T57,#REF!,X57)>5,5,COUNT(F57,H57,J57,L57:N57,P57,R57,T57,#REF!,X57)) -> 1 | AF57: =IFERROR(IF(AC57>5,AVERAGE(SMALL((F57,H57,J57,L57,N57,P57,R57,T57,V57,X57,Z57,AB57),{1,2,3,4,5})),AD57),"No race run") -> 0.04194459185
B58: Grieve | C58: Wendy | D58: F | M58: 0.09920138889 | N58: =95.2%*(M58*86400)*POWER((6.2138818/13.1094),1.07)/86400 -> 0.04248537793 | AC58: 1 | AD58: 0.04248537793 | AE58: =IF(COUNT(F58,H58,J58,L58:N58,P58,R58,T58,#REF!,X58)>5,5,COUNT(F58,H58,J58,L58:N58,P58,R58,T58,#REF!,X58)) -> 2 | AF58: =IFERROR(IF(AC58>5,AVERAGE(SMALL((F58,H58,J58,L58,N58,P58,R58,T58,V58,X58,Z58,AB58),{1,2,3,4,5})),AD58),"No race run") -> 0.04248537793
B59: Ward | C59: Linda | D59: F | I59: 0.0437037037 | J59: =98.7%*(I59) -> 0.04313555556 | AC59: 1 | AD59: 0.04313555556 | AE59: =IF(COUNT(F59,H59,J59,L59:N59,P59,R59,T59,#REF!,X59)>5,5,COUNT(F59,H59,J59,L59:N59,P59,R59,T59,#REF!,X59)) -> 1 | AF59: =IFERROR(IF(AC59>5,AVERAGE(SMALL((F59,H59,J59,L59,N59,P59,R59,T59,V59,X59,Z59,AB59),{1,2,3,4,5})),AD59),"No race run") -> 0.04313555556
B60: Thomson | C60: Susan | D60: F | E60: 0.1027083333 | F60: =98.2%*(E60*86400)*POWER((6.2138818/13.1094),1.07)/86400 -> 0.0453734659 | G60: 0.07018518519 | H60: =99.3%*(G60*86400)*POWER((6.2138818/10),1.07)/86400 -> 0.04188833476 | AC60: 2 | AD60: 0.04363090033 | AE60: =IF(COUNT(F60,H60,J60,L60:N60,P60,R60,T60,#REF!,X60)>5,5,COUNT(F60,H60,J60,L60:N60,P60,R60,T60,#REF!,X60)) -> 2 | AF60: =IFERROR(IF(AC60>5,AVERAGE(SMALL((F60,H60,J60,L60,N60,P60,R60,T60,V60,X60,Z60,AB60),{1,2,3,4,5})),AD60),"No race run") -> 0.04363090033
B61: Eaton | C61: Sarah | D61: F | I61: 0.04407407407 | J61: =98.7%*(I61) -> 0.04350111111 | Q61: 0.02586805556 | R61: =99.9%*(Q61*86400)*POWER((6.2138818/3.9),1.07)/86400 -> 0.04253912384 | W61: 0.04425925926 | X61: =99.8%*(W61) -> 0.04417074074 | AA61: 0.07668981481 | AB61: =97.3%*(AA61*86400)*POWER((6.2138818/10),1.07)/86400 -> 0.04484860369 | AC61: 4 | AD61: 0.04376489485 | AE61: =IF(COUNT(F61,H61,J61,L61:N61,P61,R61,T61,#REF!,X61)>5,5,COUNT(F61,H61,J61,L61:N61,P61,R61,T61,#REF!,X61)) -> 3 | AF61: =IFERROR(IF(AC61>5,AVERAGE(SMALL((F61,H61,J61,L61,N61,P61,R61,T61,V61,X61,Z61,AB61),{1,2,3,4,5})),AD61),"No race run") -> 0.04376489485
B62: Lopez | C62: Hannah | D62: F | G62: 0.0734837963 | H62: =99.3%*(G62*86400)*POWER((6.2138818/10),1.07)/86400 -> 0.04385703123 | Q62: 0.0269212963 | R62: =99.9%*(Q62*86400)*POWER((6.2138818/3.9),1.07)/86400 -> 0.04427114186 | W62: 0.04398148148 | X62: =99.8%*(W62) -> 0.04389351852 | Y62: 0.04394675926 | Z62: =98.7%*(Y62) -> 0.04337545139 | AA62: 0.07902777778 | AB62: =97.3%*(AA62*86400)*POWER((6.2138818/10),1.07)/86400 -> 0.04621585663 | AC62: 5 | AD62: 0.04432259993 | AE62: =IF(COUNT(F62,H62,J62,L62:N62,P62,R62,T62,#REF!,X62)>5,5,COUNT(F62,H62,J62,L62:N62,P62,R62,T62,#REF!,X62)) -> 3 | AF62: =IFERROR(IF(AC62>5,AVERAGE(SMALL((F62,H62,J62,L62,N62,P62,R62,T62,V62,X62,Z62,AB62),{1,2,3,4,5})),AD62),"No race run") -> 0.04432259993
B63: Nouillan | C63: Bill | D63: M | E63: 0.1216782407 | F63: =98.2%*(E63*86400)*POWER((6.2138818/13.1094),1.07)/86400 -> 0.05375380291 | AC63: 1 | AD63: 0.05375380291 | AE63: =IF(COUNT(F63,H63,J63,L63:N63,P63,R63,T63,#REF!,X63)>5,5,COUNT(F63,H63,J63,L63:N63,P63,R63,T63,#REF!,X63)) -> 1 | AF63: =IFERROR(IF(AC63>5,AVERAGE(SMALL((F63,H63,J63,L63,N63,P63,R63,T63,V63,X63,Z63,AB63),{1,2,3,4,5})),AD63),"No race run") -> 0.05375380291
AC64: =COUNT(F64,H64,J64,L64,N64,P64,R64,T64,V64,X64,Z64,AB64) -> 0 | AD64: =IFERROR(AVERAGE(F64,H64,J64,L64,N64,P64,R64,T64,V64,X64,Z64,AB64),"No race run") -> No race run | AE64: =IF(COUNT(F64,H64,J64,L64:N64,P64,R64,T64,#REF!,X64)>5,5,COUNT(F64,H64,J64,L64:N64,P64,R64,T64,#REF!,X64)) -> 0 | AF64: =IFERROR(IF(AC64>5,AVERAGE(SMALL((F64,H64,J64,L64,N64,P64,R64,T64,V64,X64,Z64,AB64),{1,2,3,4,5})),AD64),"No race run") -> No race run
AC65: 0 | AD65: No race run | AE65: =IF(COUNT(F65,H65,J65,L65:N65,P65,R65,T65,#REF!,X65)>5,5,COUNT(F65,H65,J65,L65:N65,P65,R65,T65,#REF!,X65)) -> 0 | AF65: =IFERROR(IF(AC65>5,AVERAGE(SMALL((F65,H65,J65,L65,N65,P65,R65,T65,V65,X65,Z65,AB65),{1,2,3,4,5})),AD65),"No race run") -> No race run
AC66: 0 | AD66: No race run | AE66: =IF(COUNT(F66,H66,J66,L66:N66,P66,R66,T66,#REF!,X66)>5,5,COUNT(F66,H66,J66,L66:N66,P66,R66,T66,#REF!,X66)) -> 0 | AF66: =IFERROR(IF(AC66>5,AVERAGE(SMALL((F66,H66,J66,L66,N66,P66,R66,T66,V66,X66,Z66,AB66),{1,2,3,4,5})),AD66),"No race run") -> No race run
AC67: 0 | AD67: No race run | AE67: =IF(COUNT(F67,H67,J67,L67:N67,P67,R67,T67,#REF!,X67)>5,5,COUNT(F67,H67,J67,L67:N67,P67,R67,T67,#REF!,X67)) -> 0 | AF67: =IFERROR(IF(AC67>5,AVERAGE(SMALL((F67,H67,J67,L67,N67,P67,R67,T67,V67,X67,Z67,AB67),{1,2,3,4,5})),AD67),"No race run") -> No race run
AC68: 0 | AD68: No race run | AE68: =IF(COUNT(F68,H68,J68,L68:N68,P68,R68,T68,#REF!,X68)>5,5,COUNT(F68,H68,J68,L68:N68,P68,R68,T68,#REF!,X68)) -> 0 | AF68: =IFERROR(IF(AC68>5,AVERAGE(SMALL((F68,H68,J68,L68,N68,P68,R68,T68,V68,X68,Z68,AB68),{1,2,3,4,5})),AD68),"No race run") -> No race run
AC69: 0 | AD69: No race run | AE69: =IF(COUNT(F69,H69,J69,L69:N69,P69,R69,T69,#REF!,X69)>5,5,COUNT(F69,H69,J69,L69:N69,P69,R69,T69,#REF!,X69)) -> 0 | AF69: =IFERROR(IF(AC69>5,AVERAGE(SMALL((F69,H69,J69,L69,N69,P69,R69,T69,V69,X69,Z69,AB69),{1,2,3,4,5})),AD69),"No race run") -> No race run
AC70: 0 | AD70: No race run | AE70: =IF(COUNT(F70,H70,J70,L70:N70,P70,R70,T70,#REF!,X70)>5,5,COUNT(F70,H70,J70,L70:N70,P70,R70,T70,#REF!,X70)) -> 0 | AF70: =IFERROR(IF(AC70>5,AVERAGE(SMALL((F70,H70,J70,L70,N70,P70,R70,T70,V70,X70,Z70,AB70),{1,2,3,4,5})),AD70),"No race run") -> No race run
AC71: 0 | AD71: =IFERROR(AVERAGE(F71,H71,J71,L71,N71, P71,R71,T71,V71,X71,Z71),"No race run") -> No race run | AE71: =IF(COUNT(F71,H71,J71,L71:N71,P71,R71,T71,#REF!,X71)>5,5,COUNT(F71,H71,J71,L71:N71,P71,R71,T71,#REF!,X71)) -> 0 | AF71: =IFERROR(IF(AC71>5,AVERAGE(SMALL((F71,H71,J71,L71,N71,P71,R71,T71,V71,X71,Z71,AB71),{1,2,3,4,5})),AD71),"No race run") -> No race run
AC72: 0 | AD72: No race run | AE72: =IF(COUNT(F72,H72,J72,L72:N72,P72,R72,T72,#REF!,X72)>5,5,COUNT(F72,H72,J72,L72:N72,P72,R72,T72,#REF!,X72)) -> 0 | AF72: =IFERROR(IF(AC72>5,AVERAGE(SMALL((F72,H72,J72,L72,N72,P72,R72,T72,V72,X72,Z72,AB72),{1,2,3,4,5})),AD72),"No race run") -> No race run
AC73: 0 | AD73: No race run | AE73: =IF(COUNT(F73,H73,J73,L73:N73,P73,R73,T73,#REF!,X73)>5,5,COUNT(F73,H73,J73,L73:N73,P73,R73,T73,#REF!,X73)) -> 0 | AF73: =IFERROR(IF(AC73>5,AVERAGE(SMALL((F73,H73,J73,L73,N73,P73,R73,T73,V73,X73,Z73,AB73),{1,2,3,4,5})),AD73),"No race run") -> No race run
AC74: 0 | AD74: No race run | AE74: =IF(COUNT(F74,H74,J74,L74:N74,P74,R74,T74,#REF!,X74)>5,5,COUNT(F74,H74,J74,L74:N74,P74,R74,T74,#REF!,X74)) -> 0 | AF74: =IFERROR(IF(AC74>5,AVERAGE(SMALL((F74,H74,J74,L74,N74,P74,R74,T74,V74,X74,Z74,AB74),{1,2,3,4,5})),AD74),"No race run") -> No race run
AC75: 0 | AD75: No race run | AE75: =IF(COUNT(F75,H75,J75,L75:N75,P75,R75,T75,#REF!,X75)>5,5,COUNT(F75,H75,J75,L75:N75,P75,R75,T75,#REF!,X75)) -> 0 | AF75: =IFERROR(IF(AC75>5,AVERAGE(SMALL((F75,H75,J75,L75,N75,P75,R75,T75,V75,X75,Z75,AB75),{1,2,3,4,5})),AD75),"No race run") -> No race run
AC76: 0 | AD76: No race run | AE76: =IF(COUNT(F76,H76,J76,L76:N76,P76,R76,T76,#REF!,X76)>5,5,COUNT(F76,H76,J76,L76:N76,P76,R76,T76,#REF!,X76)) -> 0 | AF76: =IFERROR(IF(AC76>5,AVERAGE(SMALL((F76,H76,J76,L76,N76,P76,R76,T76,V76,X76,Z76,AB76),{1,2,3,4,5})),AD76),"No race run") -> No race run
AC77: 0 | AD77: No race run | AE77: =IF(COUNT(F77,H77,J77,L77:N77,P77,R77,T77,#REF!,X77)>5,5,COUNT(F77,H77,J77,L77:N77,P77,R77,T77,#REF!,X77)) -> 0 | AF77: =IFERROR(IF(AC77>5,AVERAGE(SMALL((F77,H77,J77,L77,N77,P77,R77,T77,V77,X77,Z77,AB77),{1,2,3,4,5})),AD77),"No race run") -> No race run
AC78: 0 | AD78: No race run | AE78: =IF(COUNT(F78,H78,J78,L78:N78,P78,R78,T78,#REF!,X78)>5,5,COUNT(F78,H78,J78,L78:N78,P78,R78,T78,#REF!,X78)) -> 0 | AF78: =IFERROR(IF(AC78>5,AVERAGE(SMALL((F78,H78,J78,L78,N78,P78,R78,T78,V78,X78,Z78,AB78),{1,2,3,4,5})),AD78),"No race run") -> No race run
AC79: 0 | AD79: No race run | AE79: =IF(COUNT(F79,H79,J79,L79:N79,P79,R79,T79,#REF!,X79)>5,5,COUNT(F79,H79,J79,L79:N79,P79,R79,T79,#REF!,X79)) -> 0 | AF79: =IFERROR(IF(AC79>5,AVERAGE(SMALL((F79,H79,J79,L79,N79,P79,R79,T79,V79,X79,Z79,AB79),{1,2,3,4,5})),AD79),"No race run") -> No race run
AC80: 0 | AD80: No race run | AE80: =IF(COUNT(F80,H80,J80,L80:N80,P80,R80,T80,#REF!,X80)>5,5,COUNT(F80,H80,J80,L80:N80,P80,R80,T80,#REF!,X80)) -> 0 | AF80: =IFERROR(IF(AC80>5,AVERAGE(SMALL((F80,H80,J80,L80,N80,P80,R80,T80,V80,X80,Z80,AB80),{1,2,3,4,5})),AD80),"No race run") -> No race run
AC81: 0 | AD81: No race run | AE81: =IF(COUNT(F81,H81,J81,L81:N81,P81,R81,T81,#REF!,X81)>5,5,COUNT(F81,H81,J81,L81:N81,P81,R81,T81,#REF!,X81)) -> 0 | AF81: =IFERROR(IF(AC81>5,AVERAGE(SMALL((F81,H81,J81,L81,N81,P81,R81,T81,V81,X81,Z81,AB81),{1,2,3,4,5})),AD81),"No race run") -> No race run
AC82: 0 | AD82: No race run | AE82: =IF(COUNT(F82,H82,J82,L82:N82,P82,R82,T82,#REF!,X82)>5,5,COUNT(F82,H82,J82,L82:N82,P82,R82,T82,#REF!,X82)) -> 0 | AF82: =IFERROR(IF(AC82>5,AVERAGE(SMALL((F82,H82,J82,L82,N82,P82,R82,T82,V82,X82,Z82,AB82),{1,2,3,4,5})),AD82),"No race run") -> No race run
AC83: 0 | AD83: No race run | AE83: =IF(COUNT(F83,H83,J83,L83:N83,P83,R83,T83,#REF!,X83)>5,5,COUNT(F83,H83,J83,L83:N83,P83,R83,T83,#REF!,X83)) -> 0 | AF83: =IFERROR(IF(AC83>5,AVERAGE(SMALL((F83,H83,J83,L83,N83,P83,R83,T83,V83,X83,Z83,AB83),{1,2,3,4,5})),AD83),"No race run") -> No race run
AC84: 0 | AD84: No race run | AE84: =IF(COUNT(F84,H84,J84,L84:N84,P84,R84,T84,#REF!,X84)>5,5,COUNT(F84,H84,J84,L84:N84,P84,R84,T84,#REF!,X84)) -> 0 | AF84: =IFERROR(IF(AC84>5,AVERAGE(SMALL((F84,H84,J84,L84,N84,P84,R84,T84,V84,X84,Z84,AB84),{1,2,3,4,5})),AD84),"No race run") -> No race run
AC85: 0 | AD85: No race run | AE85: =IF(COUNT(F85,H85,J85,L85:N85,P85,R85,T85,#REF!,X85)>5,5,COUNT(F85,H85,J85,L85:N85,P85,R85,T85,#REF!,X85)) -> 0 | AF85: =IFERROR(IF(AC85>5,AVERAGE(SMALL((F85,H85,J85,L85,N85,P85,R85,T85,V85,X85,Z85,AB85),{1,2,3,4,5})),AD85),"No race run") -> No race run
AC86: 0 | AD86: No race run | AE86: =IF(COUNT(F86,H86,J86,L86:N86,P86,R86,T86,#REF!,X86)>5,5,COUNT(F86,H86,J86,L86:N86,P86,R86,T86,#REF!,X86)) -> 0 | AF86: =IFERROR(IF(AC86>5,AVERAGE(SMALL((F86,H86,J86,L86,N86, P86,R86,T86,V86,X86,Z86),{1,2,3,4,5})),AD86),"No race run") -> No race run
AC87: 0 | AD87: No race run | AE87: =IF(COUNT(F87,H87,J87,L87:N87,P87,R87,T87,#REF!,X87)>5,5,COUNT(F87,H87,J87,L87:N87,P87,R87,T87,#REF!,X87)) -> 0 | AF87: =IFERROR(IF(AC87>5,AVERAGE(SMALL((F87,H87,J87,L87,N87, P87,R87,T87,V87,X87,Z87),{1,2,3,4,5})),AD87),"No race run") -> No race run
AC88: 0 | AD88: No race run | AE88: =IF(COUNT(F88,H88,J88,L88:N88,P88,R88,T88,#REF!,X88)>5,5,COUNT(F88,H88,J88,L88:N88,P88,R88,T88,#REF!,X88)) -> 0 | AF88: =IFERROR(IF(AC88>5,AVERAGE(SMALL((F88,H88,J88,L88,N88, P88,R88,T88,V88,X88,Z88),{1,2,3,4,5})),AD88),"No race run") -> No race run
AC89: 0 | AD89: No race run | AE89: =IF(COUNT(F89,H89,J89,L89:N89,P89,R89,T89,#REF!,X89)>5,5,COUNT(F89,H89,J89,L89:N89,P89,R89,T89,#REF!,X89)) -> 0 | AF89: =IFERROR(IF(AC89>5,AVERAGE(SMALL((F89,H89,J89,L89,N89, P89,R89,T89,V89,X89,Z89),{1,2,3,4,5})),AD89),"No race run") -> No race run
AC90: 0 | AD90: No race run | AE90: =IF(COUNT(F90,H90,J90,L90:N90,P90,R90,T90,#REF!,X90)>5,5,COUNT(F90,H90,J90,L90:N90,P90,R90,T90,#REF!,X90)) -> 0 | AF90: =IFERROR(IF(AC90>5,AVERAGE(SMALL((F90,H90,J90,L90,N90, P90,R90,T90,V90,X90,Z90),{1,2,3,4,5})),AD90),"No race run") -> No race run
AC91: 0 | AD91: No race run | AE91: =IF(COUNT(F91,H91,J91,L91:N91,P91,R91,T91,#REF!,X91)>5,5,COUNT(F91,H91,J91,L91:N91,P91,R91,T91,#REF!,X91)) -> 0 | AF91: =IFERROR(IF(AC91>5,AVERAGE(SMALL((F91,H91,J91,L91,N91, P91,R91,T91,V91,X91,Z91),{1,2,3,4,5})),AD91),"No race run") -> No race run
AC92: 0 | AD92: No race run | AE92: =IF(COUNT(F92,H92,J92,L92:N92,P92,R92,T92,#REF!,X92)>5,5,COUNT(F92,H92,J92,L92:N92,P92,R92,T92,#REF!,X92)) -> 0 | AF92: =IFERROR(IF(AC92>5,AVERAGE(SMALL((F92,H92,J92,L92,N92, P92,R92,T92,V92,X92,Z92),{1,2,3,4,5})),AD92),"No race run") -> No race run
AC93: =COUNT(F93,H93,J93,L93,N93, P93,R93,T93,V93,X93,#REF!,Z93) -> 0 | AD93: No race run | AE93: =IF(COUNT(F93,H93,J93,L93:N93,P93,R93,T93,#REF!,X93)>5,5,COUNT(F93,H93,J93,L93:N93,P93,R93,T93,#REF!,X93)) -> 0 | AF93: =IFERROR(IF(AC93>5,AVERAGE(SMALL((F93,H93,J93,L93,N93, P93,R93,T93,V93,X93,Z93),{1,2,3,4,5})),AD93),"No race run") -> No race run
AC94: =COUNT(F94,H94,J94,L94,N94, P94,R94,T94,V94,X94,#REF!,Z94) -> 0 | AD94: No race run | AE94: =IF(COUNT(F94,H94,J94,L94:N94,P94,R94,T94,#REF!,X94)>5,5,COUNT(F94,H94,J94,L94:N94,P94,R94,T94,#REF!,X94)) -> 0 | AF94: =IFERROR(IF(AC94>5,AVERAGE(SMALL((F94,H94,J94,L94,N94, P94,R94,T94,V94,X94,Z94),{1,2,3,4,5})),AD94),"No race run") -> No race run
AC95: =COUNT(F95,H95,J95,L95,N95, P95,R95,T95,V95,X95,#REF!,Z95) -> 0 | AD95: No race run | AE95: =IF(COUNT(F95,H95,J95,L95:N95,P95,R95,T95,#REF!,X95)>5,5,COUNT(F95,H95,J95,L95:N95,P95,R95,T95,#REF!,X95)) -> 0 | AF95: =IFERROR(IF(AC95>5,AVERAGE(SMALL((F95,H95,J95,L95,N95, P95,R95,T95,V95,X95,Z95),{1,2,3,4,5})),AD95),"No race run") -> No race run
F374: s
